Cogmind - Beta 17 @@@ ROGUE MODE // 2026.06.25 @ 19:53:37 Player: Bikerider58 Result: Destroyed by Fortress with Graviton Cannon Performance ------------- Evolutions (8) 4000 Regions Visited (23) 4600 Robots Destroyed (501) 2505 Value Destroyed (25534) 25534 Prototype IDs (55) 1100 Alien Tech Used (1) 200 Bonus (49287) 49287 TOTAL SCORE: 87226 Bonus ------- Triggered High Security 1000 High Alert Combat Kills 12600 Follower Combat Kills 8458 Prayed to X0-1V1 5000 Major X0-1V1 Interference 12600 Subatomizer Sterilization 3000 Entered Garrisons 1000 Used RIF Installer 3000 Network Hubs Disabled 400 Built Enhanced Grunts 300 A7 Reached Mainframe 300 Met R17 at Cetus 500 Met R17 at Research 2000 Scanned by Researcher 500 Friendly Fire -1371 Cogmind --------- Core Integrity 0/1500 Matter 459/700 Energy 155/450 System Corruption 39% Temperature Cool (9) Movement Core (100) Ox1 Location -2/Quarantine Parts ------- > --- POWER (3) -------- (None) > --- PROPULSION (5) --- (None) > --- UTILITY (12) ----- Energy Well > --- WEAPON (4) ------- (None) > --- INVENTORY (5) ---- Light Quantum Reactor Peak State ------------ > --- POWER ------------ Compact Particle Reactor Light Quantum Reactor Light Quantum Reactor > --- PROPULSION ------- Enhanced Armored Medium Treads Enhanced Armored Medium Treads Enhanced Armored Medium Treads Advanced Heavy Siege Treads > --- UTILITY ---------- Experimental Cooling System Huge Storage Unit Experimental Core Analyzer Centrium Medium Armor Plating Advanced Force Field Relay Coupler [NC] Relay Coupler [Grunt] Relay Coupler [Sentry] Relay Coupler [Hunter] Relay Coupler [Behemoth] X0-1V1's Piety Tracker > --- WEAPON ----------- Linear Accelerator Linear Accelerator Enhanced Hardcell Cannon Advanced Remote Datajack > --- INVENTORY -------- Biometal Heavy Treads Biometal Heavy Treads Advanced Heavy Siege Treads Experimental Heat Sink Experimental Energy Well Improved Matter Compressor Seismic Detector Experimental Targeting Computer Nanoactuators Nanoactuators Advanced Force Booster Centrium Medium Armor Plating Graphene Brace Advanced Force Field Authchip [R/NC] Relay Coupler [Grunt] Relay Coupler [Specialist] Long-range Tractor Beam Cooled Proton Cannon Cooled Proton Cannon Improved Remote Datajack Thunder Hammer [Rating: 187] Favorites ----------- Power Light Quantum Reactor Engine Light Angular Momentum Engine Power Core Fission Core Reactor Light Quantum Reactor Propulsion Centrium Leg Treads Enhanced Armored Medium Treads Leg Centrium Leg Wheel High-density Centrium Wheel Flight Unit Cesium-ion Thruster Utility X0-1V1's Piety Tracker Device X0-1V1's Piety Tracker Storage Huge Storage Unit Processor Core Analyzer Hackware Relay Coupler [NC] Protection Centrium Medium Armor Plating Weapon Light Antimatter Cannon Energy Gun Heavy Beamcaster Energy Cannon Cooled Proton Cannon Ballistic Gun Helical Railgun Ballistic Cannon Light Antimatter Cannon Launcher Rocket Launcher Special Weapon Improved Remote Datajack Impact Weapon Thunder Hammer Slashing Weapon Phasing Sabre Piercing Weapon Plasma Lance Special Melee Weapon Datajack Build | -11 -10 -9 -9 -8 -8 -7 -7 -6 -6 -6 -6 -6 -6 -6 -5 -5 -4 -4 -3 -3 -3 -2 -2 ------- Run | Yrd Mat Mat Min Mat Gar Fac Gar Fac Was Fac Ext Cet Arc Hub Fac Gar Fac Gar Res Tes Gar Res Qua Slots Evolved 16 | . . 2 . 2 . 2 . 2 . . . . . . 2 . 2 . 2 . . 2 . Power 1 | . . . . . . . . . . . . . . . . . . . . . . 1 . Propulsion 4 | . . . . . . . . 1 . . . . . . . . 1 . 2 . . . . Utility 9 | . . 1 . 2 . 1 . 1 . . . . . . 2 . 1 . . . . 1 . Weapon 2 | . . 1 . . . 1 . . . . . . . . . . . . . . . . . Parts Attached 309 | 9 14 14 5 3 3 10 22 23 10 16 9 6 2 1 11 23 11 33 7 27 7 11 32 Power 42 | 1 3 3 1 . . . 2 . 1 1 . 1 . 1 1 4 2 6 1 1 . 4 9 Engine 9 | 1 3 3 1 . . . 1 . . . . . . . . . . . . . . . . Core 4 | . . . . . . . 1 . . . . . . . 1 . . 2 . . . . . Reactor 29 | . . . . . . . . . 1 1 . 1 . 1 . 4 2 4 1 1 . 4 9 Propulsion 45 | 2 2 2 . . . 1 4 6 2 2 1 1 . . . 4 1 . 2 6 2 1 6 Treads 25 | 2 . 1 . . . 1 3 4 2 . 1 1 . . . 1 . . . 3 2 1 3 Leg 10 | . . . . . . . . . . . . . . . . 3 1 . 2 3 . . 1 Wheel 8 | . 2 1 . . . . 1 2 . 2 . . . . . . . . . . . . . Hover . | . . . . . . . . . . . . . . . . . . . . . . . . Flight 2 | . . . . . . . . . . . . . . . . . . . . . . . 2 Utility 131 | 3 5 3 1 3 2 6 9 12 4 5 3 3 . . 7 8 6 20 1 14 5 4 7 Device 60 | 2 1 2 1 . . 2 5 6 2 2 2 1 . . 4 4 1 14 . 6 1 1 3 Storage 11 | 1 2 . . . . . . . 1 . . . . . . . . 1 . 3 . . 3 Processor 9 | . . . . 1 . 2 . . . . . . . . 2 2 . 1 . . . 1 . Hackware 26 | . . . . . 2 2 2 3 . 2 . . . . . 1 3 2 1 1 4 2 1 Protection 25 | . 2 1 . 2 . . 2 3 1 1 1 2 . . 1 1 2 2 . 4 . . . Artifact . | . . . . . . . . . . . . . . . . . . . . . . . . Weapon 91 | 3 4 6 3 . 1 3 7 5 3 8 5 1 2 . 3 7 2 7 3 6 . 2 10 Energy Gun 34 | 2 1 2 3 . . 1 4 2 3 1 2 1 . . . 5 1 3 . . . . 3 Energy Cannon 6 | . . 1 . . . . . . . . . . . . . . . . 2 3 . . . Ballistic Gun 16 | 1 3 1 . . 1 1 1 . . 5 . . 1 . . 1 . 1 . . . . . Ballistic Cannon 6 | . . . . . . . . . . 2 . . . . . . . 1 1 . . 2 . Launcher 9 | . . 2 . . . . . 2 . . 1 . . . . 1 . . . . . . 3 Special Weapon 8 | . . . . . . . 1 . . . 1 . 1 . 1 . 1 . . 2 . . 1 Impact Weapon 4 | . . . . . . . 1 . . . . . . . . . . 2 . . . . 1 Slashing Weapon 4 | . . . . . . . . 1 . . 1 . . . 2 . . . . . . . . Piercing Weapon 3 | . . . . . . . . . . . . . . . . . . . . 1 . . 2 Special Melee Weapon 1 | . . . . . . 1 . . . . . . . . . . . . . . . . . Unidentified Prototypes 31 | . 1 3 . . . . . 1 1 6 . 3 . . 3 . . . . 10 . 1 2 Corrupted Parts 2 | . . . . . . . . . . . . 1 . . . . 1 . . . . . . System Corruption 7 | . . . . . . . . . . . . 1 . . . . 6 . . . . . . Parts Lost 90 | . 3 . . . . 1 5 7 . 3 3 . . 1 2 1 7 12 2 1 3 2 37 Power 14 | . 1 . . . . . 1 . . . . . . 1 . . 1 2 . . . 2 6 Propulsion 13 | . 1 . . . . . 1 1 . . . . . . . . . . 1 . 1 . 8 Utility 43 | . 1 . . . . 1 2 6 . 1 3 . . . 1 1 6 6 1 1 1 . 12 Weapon 20 | . . . . . . . 1 . . 2 . . . . 1 . . 4 . . 1 . 11 Highest Loss Streak 10 | . 1 . . . . 1 1 3 . 3 1 . . 1 2 1 5 4 2 1 2 2 10 To Critical Strikes 2 | . . . . . . . . . . . . . . . . . . . . . 1 . 1 Average Backups 20 | . 13 19 19 18 18 18 18 18 21 21 22 22 21 21 21 22 21 22 22 22 21 21 14 Power . | . . . 1 1 1 1 . 1 2 1 2 1 1 . . . . . . . . . . Propulsion 3 | . 4 5 3 3 3 3 2 1 2 2 3 3 4 4 4 4 3 4 3 3 3 2 2 Utility 10 | . 5 9 10 10 10 10 11 10 10 10 10 10 8 9 9 11 10 10 15 13 11 13 8 Weapon 5 | . 2 3 4 3 3 3 3 5 6 6 6 6 7 8 6 5 7 7 4 5 5 4 2 Tool/Special . | . . . . . . . . . . . . . . . . . . . . . . . . Unused Backups 83 | 1 5 6 . . 3 . 7 4 6 3 3 5 . . . 7 . 5 . 3 5 6 14 Power 10 | . 1 . . . . . 2 . 1 . . . . . . 1 . . . . 2 . 3 Propulsion 17 | . . 3 . . . . 1 1 2 1 . 1 . . . 3 . . . 1 . . 4 Utility 28 | 1 2 . . . 3 . . 2 1 2 2 2 . . . 2 . 2 . 1 2 1 5 Weapon 27 | . 2 3 . . . . 4 1 2 . 1 2 . . . 1 . 3 . 1 1 5 1 Tool/Special 1 | . . . . . . . . . . . . . . . . . . . . . . . 1 Average Slot Usage (%) 93 | . 99 99 100 96 100 99 99 98 87 86 92 93 93 90 85 87 98 98 99 90 90 94 75 Engine 2 | . 13 11 11 9 9 7 5 . . . . . . . . . . . . . . . . Core 1 | . . . . . . . 1 6 4 . . . . . . 3 . 2 1 . . . . Reactor 5 | . . . . . . . . . 1 5 6 6 6 5 4 5 9 7 6 8 9 12 7 Treads 9 | . 18 11 11 9 9 7 7 18 13 11 6 6 6 5 4 4 . . . 10 17 17 11 Leg 3 | . . . . . . . . . . . . . . . . . 20 15 22 7 . . 1 Wheel 5 | . 9 11 11 9 9 7 7 6 . 2 13 13 13 12 9 4 . . . . . . . Device 16 | . 10 19 22 18 18 22 16 15 20 14 12 13 13 12 10 13 25 25 27 17 15 14 6 Storage 6 | . 14 11 11 9 9 7 7 6 6 5 6 6 6 5 4 5 5 5 4 5 8 4 6 Processor 5 | . . . . 6 9 7 7 6 6 5 6 6 6 5 10 6 5 5 4 4 4 4 3 Hackware 10 | . . . . . . . 5 9 6 10 13 13 13 12 10 12 10 14 9 14 12 19 22 Protection 5 | . 3 2 . 9 9 7 6 5 6 5 5 6 6 5 4 4 5 5 4 4 4 4 1 Energy Gun 7 | . 8 14 16 18 17 20 14 15 14 12 2 9 6 . . 7 9 4 . . . . 1 Energy Cannon 1 | . . 4 4 . . . . . . . . . . . . . . . 1 4 8 3 2 Ballistic Gun 3 | . 19 13 11 9 9 7 5 . . 3 . 2 4 . . 5 2 2 . . . . . Ballistic Cannon 2 | . . . . . . . . . . 1 12 7 6 12 9 2 . . 1 . . 7 3 Special Weapon 1 | . . . . . . . 4 3 1 2 . . 1 5 1 2 2 . . 1 3 4 1 Impact Weapon 1 | . . . . . . . 1 . . . . . . . . . . 5 7 4 3 1 . Slashing Weapon 1 | . . . . . . . . . 3 . 3 . . . 6 . . 2 2 1 . . . Peak Build Rating 187 | 7 22 32 39 44 45 54 58 73 96 135 107 124 121 117 151 151 155 146 159 170 182 187 187 Average Rating 107 | 6 8 27 32 42 43 49 52 64 89 99 104 116 118 114 128 132 145 137 154 155 168 178 147 On Entrance 91 | . 7 22 30 39 44 45 45 58 68 96 107 104 121 117 117 122 141 130 139 135 169 164 184 Avg Prop Armor Cover (%) 9 | . 10 9 10 8 8 7 8 14 14 5 9 7 5 9 8 6 . . . 7 . . 22 Naked Turns . | . . . . . . . . . . . . . . . . . . . . . . . . Heaviest Build 188 | 13 53 60 62 67 67 75 75 75 123 138 116 121 121 121 150 167 154 162 172 165 167 188 183 Greatest Support 230 | 40 40 12 12 12 20 12 12 90 145 145 75 80 80 80 80 90 120 90 145 230 230 185 185 Greatest Overweight (x) 8 | . 5 5 5 5 5 6 6 6 3 6 2 2 1 3 7 8 1 1 1 1 . 1 5 Average Overweight (x) 2 | . 3 4 4 5 4 5 5 1 . . 1 1 1 1 3 5 . 1 1 . . . . Largest Inventory Capacity 25 | 8 20 20 20 20 20 20 20 20 25 25 25 25 25 25 25 25 25 25 25 25 25 25 25 Average Capacity 23 | 7 18 20 20 20 20 20 20 20 24 25 25 25 25 25 25 25 25 25 25 25 25 25 20 Most Carried 25 | 2 20 20 20 20 20 20 20 20 25 25 25 25 25 25 25 25 25 25 25 25 25 25 25 Average Carried 22 | . 13 19 19 19 19 19 19 19 24 24 24 24 24 24 24 24 23 24 24 24 24 24 17 Final Capacity 25 | 8 20 20 20 20 20 20 20 20 25 25 25 25 25 25 25 25 25 25 25 25 25 25 5 Final Carried 25 | 2 20 20 20 20 20 20 20 20 25 25 25 25 25 24 25 25 24 25 25 25 25 25 1 Class Distribution -------------------- 17% | Bothacker-Gunner 17% | Botlord-Tank 14% | Mutant 8% | Commander-Tank 6% | Scavenger-Gladiator 6% | Scavenger-Gunner 4% | Tank 3% | Scavenger-Tank 3% | Bothacker-Mutant 3% | Bothacker-Tank Dominant Class ---------------- Mutant | -10/Materials Gunner | -9/Materials Scavenger-Gunner | -9/Mines Scavenger-Gunner | -8/Materials Bothacker-Gunner | -8/Garrison Bothacker-Gunner | -7/Factory Bothacker-Gunner | -7/Garrison Bothacker-Gunner | -6/Factory Bothacker-Mutant | -6/Waste Scavenger-Tank | -6/Factory Mutant | -6/Extension Commander-Tank | -6/Cetus Commander-Tank | -6/Archives Commander-Tank | -6/Hub_04(d) Mutant | -5/Factory Bothacker-Executioner | -5/Garrison Botlord-Tank | -4/Factory Scavenger-Gladiator | -4/Garrison Scavenger-Gladiator | -3/Research Botlord-Mutant | -3/Testing Botlord-Tank | -3/Garrison Botlord-Tank | -2/Research Botlord-Tank | -2/Quarantine Resources | -11 -10 -9 -9 -8 -8 -7 -7 -6 -6 -6 -6 -6 -6 -6 -5 -5 -4 -4 -3 -3 -3 -2 -2 ----------- Run | Yrd Mat Mat Min Mat Gar Fac Gar Fac Was Fac Ext Cet Arc Hub Fac Gar Fac Gar Res Tes Gar Res Qua Matter Collected 18307 | 305 564 433 74 . 691 385 1292 746 770 1078 1155 623 69 40 785 1216 819 1392 418 435 682 2214 2121 Remotely 2845 | 180 . . . . . . . . . . . . . . . . . . . . . 691 1974 Salvage Created 21082 | 174 821 864 102 . 707 305 1231 1873 425 2166 996 278 98 19 617 1482 1744 2092 477 461 714 1531 1905 Parts 898 | 13 71 48 11 . 28 17 49 67 7 67 40 8 8 1 29 63 94 96 17 22 26 64 52 Haulers Intercepted 10 | . 2 4 . . . 1 . . . 1 . . . . . . . . 1 1 . . . Recyclers Shooed 10 | . 1 1 . . . . . 2 . 4 2 . . . . . . . . . . . . Parts Field Recycled . | . . . . . . . . . . . . . . . . . . . . . . . . Retrieved Matter . | . . . . . . . . . . . . . . . . . . . . . . . . Parts Self-Destructed . | . . . . . . . . . . . . . . . . . . . . . . . . Prevented . | . . . . . . . . . . . . . . . . . . . . . . . . Parts Restored . | . . . . . . . . . . . . . . . . . . . . . . . . Kills | -11 -10 -9 -9 -8 -8 -7 -7 -6 -6 -6 -6 -6 -6 -6 -5 -5 -4 -4 -3 -3 -3 -2 -2 ------- Run | Yrd Mat Mat Min Mat Gar Fac Gar Fac Was Fac Ext Cet Arc Hub Fac Gar Fac Gar Res Tes Gar Res Qua Combat Hostiles Destroyed 399 | . 22 13 . . 20 7 30 34 . 33 22 2 . 1 13 32 31 39 6 5 13 28 48 Melee 18 | . . . . . . . . 1 . . . . . . 1 1 . 9 3 . 1 . 2 Guns 175 | . 22 7 . . 13 7 23 26 . 23 1 2 . . . 12 13 24 . . . . 2 Cannons 88 | . . 2 . . . . . . . 3 15 . . 1 7 4 . . 3 5 10 28 10 AOE 104 | . . 4 . . 7 . 6 6 . 7 6 . . . 5 13 14 5 . . 1 . 30 Classes Destroyed 26 | 2 7 1 . . 1 1 3 2 . 2 3 . . . . . . . . . . . 4 Worker 27 | . 3 2 2 . . . . 7 . 3 2 . . . . . 4 . . 1 . 3 . Builder 8 | . 1 1 1 . . . . . . . . . . . . . 3 . . . . 2 . Tunneler 7 | 3 1 2 . . . . . . . . . . . . 1 . . . . . . . . Hauler 10 | . 2 4 . . . 1 . . . 1 . . . . . . . . 1 1 . . . Recycler 14 | 1 1 2 . . . . . 2 . 4 2 . . . 1 . . . . 1 . . . Mechanic 4 | . . . . . . . . . . 1 . . . . . . . . . . . . 3 Operator 10 | . 1 2 . . . . . . . 1 1 . 3 . . . . . 1 . . . 1 Drone 1 | . . . . . . . . . . . . . . . . . . . . . . . 1 Watcher 7 | . . 1 . . . . . . . 2 . 1 . . 1 . 1 . . . . 1 . Swarmer 102 | . 14 3 . . 3 3 9 3 . 6 2 . . . 7 13 12 14 2 2 8 . 1 Cutter 3 | . . . . . . . 2 . . . . . . . . . . 1 . . . . . Saboteur 9 | . . . . . . . . 3 . 1 . . . . . 1 . 3 . . . 1 . Grunt 136 | . 7 7 . . 15 1 9 18 . 16 9 . . 1 1 8 5 12 4 . 3 7 13 Brawler 15 | . . . . . . . 1 2 . . 1 . . . 1 2 3 . . . 2 . 3 Duelist 17 | . . . . . 1 . 1 2 . . . . . . . . 3 . . . . 5 5 Protector 6 | . . . . . . . . . . . 1 . . . . . 1 . . . . . 4 Sentry 38 | . 1 3 . . 1 2 5 1 . 2 5 . . . 1 5 . 8 . . 1 1 2 Demolisher 3 | . . . . . . . . . . . 1 . . . 1 . . . . . . . 1 Specialist 5 | . . . . . . . . 1 . 1 . . . . . 1 1 1 . . . . . Hunter 15 | . . . . . . . 1 2 . 2 2 . . . 1 . 1 . . . . 4 2 Programmer 46 | . . . . . . 1 3 3 . 4 . . . . 1 3 6 . . 2 . 10 13 Heavy 1 | . . . . . . . . . . 1 . . . . . . . . . . . . . Behemoth 1 | . . . . . . . . . . . 1 . . . . . . . . . . . . Cetus Guard 2 | . . . . . . . . . . . . 2 . . . . . . . . . . . Investigator 2 | . . . . . . . . . . . . . . . . . . . . . . . 2 Striker 3 | . . . . . . . . . . . . . . . . . . . . . . . 3 Executioner 2 | . . . . . . . . . . . . . . . . . . . . . . . 2 Protovariant P 1 | . . . . . . . . . . . . . . . . . . . . 1 . . . Thug 4 | . . . 1 . . . . . . . 1 1 . . 1 . . . . . . . . Butcher 1 | . . . . . . . . . . . 1 . . . . . . . . . . . . Guerrilla 2 | . . . . . . . 1 . . . . 1 . . . . . . . . . . . Best Kill Streak 26 | 2 7 5 2 . 5 6 6 9 . 8 6 2 3 1 4 8 8 7 2 3 5 13 26 Combat Bots Only 23 | . 6 4 . . 5 6 6 7 . 5 5 1 . 1 4 8 7 7 2 2 5 12 23 Max Kills in Single Turn 7 | 1 2 2 2 . 3 3 2 3 . 3 3 1 1 1 3 3 7 2 1 1 1 2 5 Gunslinging 1 | . 1 . . . . 1 1 1 . 1 . . . . . 1 1 1 . . . . . Exploded 5 | . . 2 . . 3 . 2 2 . 3 2 . . . 2 2 5 2 . . 1 . 5 Melee 1 | . . . . . . . . 1 . . . . . . 1 1 . 1 1 . 1 . 1 Uniques/NPCs Destroyed . | . . . . . . . . . . . . . . . . . . . . . . . . Combat | -11 -10 -9 -9 -8 -8 -7 -7 -6 -6 -6 -6 -6 -6 -6 -5 -5 -4 -4 -3 -3 -3 -2 -2 -------- Run | Yrd Mat Mat Min Mat Gar Fac Gar Fac Was Fac Ext Cet Arc Hub Fac Gar Fac Gar Res Tes Gar Res Qua Hostile Shots Fired 2688 | . 97 32 . . 31 49 163 204 . 182 108 18 . 31 46 155 158 244 58 76 105 236 695 Missed 838 | . 33 16 . . 9 25 63 68 . 56 36 5 . 13 12 56 41 81 19 18 34 57 196 Hits 1850 | . 64 16 . . 22 24 100 136 . 126 72 13 . 18 34 99 117 163 39 58 71 179 499 Melee 74 | . . . . . . . 4 4 . . . . . . . 4 15 1 . 2 1 7 36 Projectile 1776 | . 64 16 . . 22 24 96 132 . 126 72 13 . 18 34 95 102 162 39 56 70 172 463 AOE 15 | . . . . . . . 2 1 . . . . . . 3 . . 3 . . . . 6 Critical Strikes 83 | . 2 1 . . 6 . 6 9 . 2 4 2 . 1 . 1 8 8 2 2 1 9 19 Actively Blocked 16 | . . . . . . . . . . . . . . . . . 7 8 . 1 . . . Part Disruptions 2 | . . . . . . . . . . . . . . . . . . . . . . . 2 Damage Taken 28965 | . 679 315 . . 205 151 1106 1783 . 1780 896 344 . 316 730 1252 2335 2454 309 1419 1323 2948 8620 Core 3962 | . 144 76 . . 27 19 92 198 . 237 124 . . 12 93 79 205 258 11 61 105 130 2091 Absorbed by Shields 4865 | . . . . . . 12 6 . . . 133 73 . . . . . 239 294 101 233 917 2857 Reduced by Siege Mode 705 | . . . . . . . . . . 22 4 29 . . . 24 . . . . 148 224 254 Ignored by Resistances 6261 | . . 69 . . 123 47 228 469 . 396 179 19 . 100 33 301 485 740 281 58 77 647 2009 Regen/Repaired (Parts) 2111 | . . . . . . . . 447 305 345 . . . . . . 25 . . 140 344 113 392 Core Remaining (%) 80 | 100 53 . 78 . 95 . 85 . . . . . . 62 . 83 . 84 . . 86 . . Volleys Fired 1184 | 5 76 48 7 1 49 10 91 85 1 87 59 23 17 12 36 96 79 66 30 24 49 105 128 Largest 5 | 2 2 3 3 2 3 4 4 3 3 5 3 3 2 2 2 5 3 3 2 2 2 3 3 Hottest 321 | 60 60 156 156 138 161 229 246 240 262 262 183 240 95 102 102 321 200 200 171 171 160 166 244 Shots Fired 2224 | 10 148 115 21 2 90 39 185 172 3 189 125 58 28 18 51 169 145 152 36 28 72 206 162 Gun 1335 | 10 148 100 18 2 82 39 163 141 3 151 12 58 25 . . 110 111 139 . 1 1 . 21 Cannon 547 | . . 11 3 . . . . . . 10 108 . . 12 30 29 . . 36 20 53 161 74 Launcher 105 | . . 4 . . 8 . 10 5 . 5 5 . . . 3 13 12 9 . . . . 31 Special 237 | . . . . . . . 12 26 . 23 . . 3 6 18 17 22 4 . 7 18 45 36 Kinetic 854 | 5 112 54 7 . 25 10 33 . . 63 108 15 11 12 30 75 41 49 16 2 1 152 33 Thermal 887 | 2 36 57 14 2 57 29 130 141 3 98 12 43 14 . . 64 65 81 16 12 . . 11 Explosive 71 | . . 4 . . 8 . 10 5 . 5 5 . . . 3 . . . . . . . 31 Electromagnetic 175 | 3 . . . . . . . . . . . . . . . 13 17 18 4 7 53 9 51 Robot Hit Streak 27 | 8 9 17 6 . 21 23 27 22 . 19 19 14 8 7 9 22 12 14 7 13 10 25 11 Robot Miss Streak 6 | . 3 5 2 . 2 4 4 6 . 3 3 2 3 3 1 3 6 6 2 2 2 5 3 Penetration Max 1 | . . . . . . . 1 . . . . 1 . . . 1 . 1 . . . . . Secondary Targets 33 | . 3 . . . 1 1 5 4 . 4 . 1 . . . 3 1 9 . . . . 1 Max Gunslinging Chain 2 | . 1 . . . 1 1 1 1 . 1 . 1 . . . 2 1 1 . . . . 1 Shots Hit Robots 1510 | 8 87 73 14 . 49 28 114 125 10 132 96 42 19 10 37 101 89 129 24 36 39 135 113 Core Hits 973 | 4 47 66 8 . 42 13 67 106 3 71 58 22 8 2 21 53 79 64 10 14 18 54 143 Critical Kills 4 | . . . . . 1 . . . . . . . . . . . . 3 . . . . . Critical Parts Destroyed 11 | . . . . . . . 2 . . 1 . 1 . . . 1 . 3 . 2 . 1 . Critical Strikes 74 | . . 2 . . 1 1 5 7 . 10 13 8 . . . 1 . 8 4 7 1 4 2 Burn 30 | . . 2 . . . 1 3 7 . 9 1 7 . . . . . . . . . . . Destroy 10 | . . . . . 1 . 2 . . 1 . 1 . . . 1 . 4 . . . . . Blast 16 | . . . . . . . . . . . 11 . . . . . . . 2 . . 3 . Corrupt 4 | . . . . . . . . . . . . . . . . . . . 2 . 1 . 1 Smash 6 | . . . . . . . . . . . . . . . . . . 3 . 2 . 1 . Sever 7 | . . . . . . . . . . . 1 . . . . . . 1 . 5 . . . Impale 1 | . . . . . . . . . . . . . . . . . . . . . . . 1 Melee Attacks 202 | . . . . . . 8 10 5 10 4 5 . . . 14 7 . 62 13 28 17 4 15 Kinetic 5 | . . . . . . . . . . . . . . . . . . . . . . . 5 Impact 69 | . . . . . . . 10 2 . . . . . . . . . 20 6 10 17 4 . Slashing 110 | . . . . . . . . 3 10 4 5 . . . 14 7 . 42 7 18 . . . Piercing 10 | . . . . . . . . . . . . . . . . . . . . . . . 10 Sneak Attacks 16 | . . . . . . 2 . . . . 2 . . . 4 . . . 1 2 2 2 1 Combat Hostiles 1 | . . . . . . . . . . . . . . . . . . . 1 . . . . Follow-up Attacks 18 | . . . . . . . . . . . . . . . . . . 12 2 4 . . . Damage Inflicted 61164 | 110 1017 1535 228 . 1579 465 2656 3531 577 3474 4877 1300 460 241 1649 3577 5284 5029 1139 1302 1264 4436 15434 Guns 19034 | 110 1013 926 188 . 788 465 2230 2354 . 2491 225 1300 460 . . 1797 2199 2025 . . . . 463 Cannons 13217 | . . 204 40 . . . . . . 229 3272 . . 241 679 771 82 . 826 487 779 4198 1409 Explosions 23093 | . . 405 . . 791 . 373 1113 . 680 1151 . . . 498 1009 2994 558 . . 352 . 13169 Melee 5648 | . . . . . . . 53 36 577 . 190 . . . 472 . . 2446 295 815 133 238 393 Ramming 172 | . 4 . . . . . . 28 . 74 39 . . . . . 9 . 18 . . . . Kinetic 16633 | 67 782 405 66 . 195 96 622 . . 1109 3272 449 203 241 679 1671 813 807 516 48 . 3928 664 Thermal 14121 | . 231 810 162 . 593 369 1608 2354 . 1611 225 851 257 . . 923 1796 1128 193 337 352 . 321 Explosive 19338 | . . 320 . . 791 . 373 1113 . 680 1151 . . . 498 . 1243 . . . . . 13169 Electromagnetic 5367 | 43 . . . . . . . . . . . . . . . 983 1423 648 117 102 779 270 1002 Impact 1560 | . . . . . . . 53 . . . . . . . . . . 810 84 242 133 238 . Slashing 3695 | . . . . . . . . 36 577 . 190 . . . 472 . . 1636 211 573 . . . Piercing 278 | . . . . . . . . . . . . . . . . . . . . . . . 278 Highest Corruption 39 | . . 1 1 . . 7 10 5 . 6 8 1 1 3 5 12 13 14 . 13 4 9 39 Average Corruption 6 | . . 1 1 . . 7 9 1 . 5 7 1 1 1 5 12 5 13 . 4 4 2 15 Corruption Purged . | . . . . . . . . . . . . . . . . . . . . . . . . Corruption Blocked . | . . . . . . . . . . . . . . . . . . . . . . . . Effects 307 | . . . . . . 11 26 9 . 12 45 2 2 6 21 20 27 58 . 8 8 15 37 Message Errors 67 | . . . . . . 3 7 3 . 1 11 1 . 1 4 5 3 12 . 2 . 5 9 Matter Fused 80 | . . . . . . 4 4 . . 2 10 . 2 2 9 5 8 15 . 4 3 2 10 Heat Flow Errors 28 | . . . . . . . 4 1 . . 8 1 . 1 1 2 3 3 . . 1 1 2 Energy Discharges 34 | . . . . . . . 3 1 . 3 5 . . 1 1 2 4 9 . . 2 1 2 Parts Rejected 2 | . . . . . . . . . . . . . . . . . 1 1 . . . . . Parts Fused 5 | . . . . . . . . . . . 1 . . . 1 1 1 1 . . . . . Data Loss (minor) 25 | . . . . . . 1 3 2 . 2 2 . . . 4 2 3 2 . 1 . 1 2 Data Loss (major) 14 | . . . . . . . 1 1 . 2 4 . . . . . . 4 . . . . 2 Misfires 18 | . . . . . . 1 1 . . 1 3 . . 1 1 2 1 2 . 1 1 2 1 Alerts 6 | . . . . . . . 2 . . . . . . . . 1 . 2 . . 1 . . Misdirections 6 | . . . . . . . . . . . . . . . . . . 1 . . . . 5 Weapon Failures 22 | . . . . . . 2 1 1 . 1 1 . . . . . 3 6 . . . 3 4 Overload Shots 3 | . . . . . . . . . . . . 1 . . . 1 . . . . 1 . . Overflow Damage 1928 | . . 49 . . 8 . 16 . 116 97 54 . . 34 113 30 81 268 88 67 36 357 514 Projectiles 403 | . . . . . . . . . . . 37 . . 34 . . 42 . 40 7 . 159 84 Explosions 724 | . . 49 . . 8 . . . . 97 9 . . . 21 30 39 5 . . 36 . 430 Melee 801 | . . . . . . . 16 . 116 . 8 . . . 92 . . 263 48 60 . 198 . Knockbacks 56 | . . . . . . . 1 . . 2 7 . . 1 . 3 1 . 4 1 . 32 4 Impact 4 | . . . . . . . 1 . . . . . . . . . . . 1 1 . 1 . Kinetic 50 | . . . . . . . . . . 2 7 . . 1 . 3 1 . 3 . . 29 4 Secondary 2 | . . . . . . . . . . . . . . . . . . . . . . 2 . Self-Inflicted Damage 1831 | . . 57 . . . . 37 70 . . 65 . . . . 9 255 80 . . . . 1258 Shots 34 | . . 2 . . . . 3 2 . . 2 . . . . 1 4 4 . . . . 16 Rammed 9 | . 1 . . . . . . 2 . 2 3 . . . . . . . . . . . 1 Targets Rammed 13 | . 2 . . . . . . 2 . 3 3 . . . . . 1 . 1 . . . 1 Kicked 2 | . . . . . . . . . . . . . . . . . 1 . 1 . . . . Crushed 2 | . 1 . . . . . . . . 1 . . . . . . . . . . . . . Highest Temperature 400 | . 30 315 168 33 324 192 364 377 54 389 252 216 . 98 163 400 162 175 237 338 170 125 173 Average Temperature 85 | . 8 71 78 22 89 66 89 85 36 122 87 79 . 35 42 143 50 35 64 135 119 61 62 Received Heat Transfer 4508 | . 156 102 . . 288 62 388 573 . 465 206 8 . 78 33 342 387 522 103 18 26 316 435 Effects 7 | . . . . . . . 2 . . 3 . . . . . 2 . . . . . . . Shutdowns 1 | . . . . . . . . . . . . . . . . 1 . . . . . . . Interference 4 | . . . . . . . 2 . . 2 . . . . . . . . . . . . . Short Circuit 2 | . . . . . . . . . . 1 . . . . . 1 . . . . . . . Siege Activations 32 | . . . . . . . . . . 3 6 2 . . . 10 . . . . 1 5 5 Total Turns 421 | . . . . . . . . . . 40 56 30 . . . 87 . . . . 20 85 103 Longest Duration 48 | . . . . . . . . . . 22 15 19 . . . 22 . . . . 20 48 37 Martial Activations . | . . . . . . . . . . . . . . . . . . . . . . . . Shielding Activations . | . . . . . . . . . . . . . . . . . . . . . . . . Robots Disrupted 1 | . . . . . . . . . . . . . . . . . 1 . . . . . . Combat Hostiles 1 | . . . . . . . . . . . . . . . . . 1 . . . . . . Robots Corrupted 12 | . . . . . . . 1 . . . . . . . . 1 5 1 . . 1 2 1 Combat Hostiles 9 | . . . . . . . 1 . . . . . . . . 1 4 1 . . 1 . 1 Parts Fried 23 | . . . . . . . . . . . . 1 . . . 5 4 2 . 1 1 4 5 Impact Corruptions 14 | . . . . . . . 1 . . . . . . . . . . 4 . 2 . 7 . Robots Melted 8 | . . . . . . . . 1 . 6 . . . . . 1 . . . . . . . Combat Hostiles 2 | . . . . . . . . 1 . . . . . . . 1 . . . . . . . Parts Melted 61 | . . 4 . . 3 3 8 15 . 17 1 . . . 1 1 2 1 . 1 . 2 2 Heat Transferred 24857 | . 525 1523 321 . 1147 814 3454 5939 . 3273 407 1644 370 . . 1064 1638 1712 185 221 250 . 370 Parts Sabotaged 16 | . . . . . . . . 4 . . . . . . . 6 2 2 . . . . 2 Parts Stolen 1 | . . . . . . . . . . . . . . . . . . . . . . . 1 Parts Stripped 31 | . . . . . . . . . . . . . . . . . . . . . . . 31 Power Chain Reactions 10 | . . . . . . . . . . . . . . . . 2 6 1 . . 1 . . Alert | -11 -10 -9 -9 -8 -8 -7 -7 -6 -6 -6 -6 -6 -6 -6 -5 -5 -4 -4 -3 -3 -3 -2 -2 ------- Run | Yrd Mat Mat Min Mat Gar Fac Gar Fac Was Fac Ext Cet Arc Hub Fac Gar Fac Gar Res Tes Gar Res Qua Maximum Alert Level 5 | . 1 3 2 . 3 2 4 5 2 2 4 3 2 1 . 4 5 5 5 3 5 5 5 Low Security (%) 17 | 100 59 28 . 100 6 . . . . 61 . . . 94 100 25 . . . . . . . Level 1 10 | . 40 4 23 . 33 79 6 . 54 17 18 . 42 5 . 2 . . . . . . . Level 2 12 | . . 65 76 . 17 20 16 6 45 20 43 26 57 . . 4 . . . . . . . Level 3 22 | . . 1 . . 42 . 31 43 . . 22 73 . . . 41 44 . . 100 17 34 . Level 4 19 | . . . . . . . 44 49 . . 14 . . . . 26 49 7 97 . 45 7 5 Level 5 10 | . . . . . . . . . . . . . . . . . 5 92 2 . 37 24 1 High Security 5 | . . . . . . . . . . . . . . . . . . . . . . 32 92 Max Security . | . . . . . . . . . . . . . . . . . . . . . . . . Sterilizations 1 | . . . . . . . . . . 1 . . . . . . . . . . . . . Peak Influence 3514 | 5 392 711 466 171 876 459 1475 1603 555 559 1307 836 687 210 131 1550 1743 2856 1606 1078 1851 2948 3514 Initial 1618 | . . 144 274 156 98 459 264 774 555 165 272 717 252 130 22 37 813 1211 1606 828 783 1041 1618 Average 957 | 2 164 459 397 158 552 358 971 1064 390 199 686 736 402 141 83 810 1155 2148 1521 866 1465 1754 2602 Influence Increases 23166 | 20 707 995 207 15 778 211 1341 1597 . 977 1902 359 495 247 609 1533 1586 1885 280 592 1238 2843 2749 Destroy 0b10 Robot/C 11700 | . 440 540 . . 440 140 740 860 . 660 900 160 80 80 320 800 840 1060 160 320 600 1220 1340 Destroy 0b10 Robot/NC 630 | 20 45 80 15 . . 5 5 50 . 65 70 10 15 . 15 . 45 5 15 40 . 80 50 Destroy Leader 1490 | . 84 122 . . 20 40 50 172 . 136 110 . . 20 52 40 152 30 22 34 50 186 170 Allied During Kill 2829 | . . 82 . . 24 10 58 97 . . 512 157 95 80 31 85 143 125 12 84 178 755 301 Successful Hack 295 | . 18 7 . . 16 14 . 26 . 8 42 . . 8 80 21 18 7 16 . . 14 . Select Force Hacks 110 | . 60 . . . . . . . . . . . . 50 . . . . . . . . . Disable Machine 1035 | . . 75 . 15 30 . 15 60 . 15 30 15 45 . 45 75 180 90 . 15 15 105 210 Anti-Garrison Action 1500 | . . . . . 200 . 300 . . . . . . . . 350 . 400 . . 250 . . Destroy Structure 1803 | . . 74 . . 48 2 143 25 . 33 61 17 2 9 66 132 178 123 40 84 130 423 213 Partial Spotted 15 | . . . . . . . . . . . . . . . . 15 . . . . . . . Lose Combat Pursuer 885 | . 60 15 . . . . 30 45 . 60 15 . . . . 15 30 45 15 15 15 60 465 Miscellaneous 874 | . . . 192 . . . . 262 . . 162 . 258 . . . . . . . . . . Influence Decreases 19709 | 20 363 634 511 265 53 709 244 1485 1350 658 1176 1011 753 572 603 36 1405 760 1664 1020 431 1816 2170 Entered New Map 10257 | . . 200 431 245 53 417 114 701 1032 72 284 565 378 242 25 16 737 520 1250 644 261 810 1260 Time Decay 5751 | 20 333 374 80 20 . 262 . 534 318 540 562 326 100 150 498 . 518 . 334 356 . 386 40 Lost Part 900 | . 30 . . . . 10 50 70 . 30 30 . . 10 20 10 70 120 20 10 30 20 370 Lost Ally 2526 | . . 60 . . . 20 80 180 . 16 300 120 . 170 60 10 80 120 60 10 140 600 500 Purge Threat 275 | . . . . . . . . . . . . . 275 . . . . . . . . . . Squads Dispatched 125 | . 5 2 . . . 4 . 15 . 10 9 . . 2 4 . 9 . 4 3 . 22 36 Investigation 19 | . 4 1 . . . . . 3 . 4 4 . . 1 . . . . 1 . . . 1 Extermination 11 | . . . . . . 1 . 2 . 2 . . . . 2 . 1 . . 1 . 2 . Reinforcement 22 | . 1 1 . . . 1 . 2 . 2 3 . . 1 1 . 2 . 3 1 . 4 . Assault 63 | . . . . . . . . 5 . 2 2 . . . . . 5 . . 1 . 16 32 Garrison 10 | . . . . . . 2 . 3 . . . . . . 1 . 1 . . . . . 3 Intercept . | . . . . . . . . . . . . . . . . . . . . . . . . Searches Triggered . | . . . . . . . . . . . . . . . . . . . . . . . . Construction Impeded 4 | . . . . . . . . 1 . . 1 . . . 1 . . . . . . 1 . Haulers Reinforced 2 | . . . . . . . . . . . . . . . . . . . 1 1 . . . Active Scanning Responses . | . . . . . . . . . . . . . . . . . . . . . . . . Cargo Convoy Interrupts 1 | . . . . . . . . . . 1 . . . . . . . . . . . . . Stealth | -11 -10 -9 -9 -8 -8 -7 -7 -6 -6 -6 -6 -6 -6 -6 -5 -5 -4 -4 -3 -3 -3 -2 -2 --------- Run | Yrd Mat Mat Min Mat Gar Fac Gar Fac Was Fac Ext Cet Arc Hub Fac Gar Fac Gar Res Tes Gar Res Qua Distress Signals 33 | . 5 1 . . . . . 2 . 2 2 . . 2 . . 3 . 7 1 . 7 1 Communications Jammed 47 | . . . . . . . . 1 . . . . . . . . 46 . . . . . . Distress Signals 46 | . . . . . . . . . . . . . . . . . 46 . . . . . . Times Spotted 996 | . 38 27 . . 23 12 46 59 . 54 51 10 10 14 26 49 61 54 31 17 53 114 247 Peak Tracking Total 46 | . 5 4 . . 4 5 5 7 . 8 7 5 . 8 6 7 8 6 10 5 12 12 46 Tactical Retreats 28 | . 3 1 . . . . 2 3 . 3 1 . . . . 1 2 2 1 1 1 3 4 Traps | -11 -10 -9 -9 -8 -8 -7 -7 -6 -6 -6 -6 -6 -6 -6 -5 -5 -4 -4 -3 -3 -3 -2 -2 ------- Run | Yrd Mat Mat Min Mat Gar Fac Gar Fac Was Fac Ext Cet Arc Hub Fac Gar Fac Gar Res Tes Gar Res Qua Traps Triggered 45 | . 1 2 . . 2 . 7 5 . 2 5 . . . 1 7 1 10 . . 1 . 1 Indirectly 4 | . . . . . . . . . . . . . . . . 4 . . . . . . . Trap Hack Attempts . | . . . . . . . . . . . . . . . . . . . . . . . . Triggered . | . . . . . . . . . . . . . . . . . . . . . . . . Disarmed . | . . . . . . . . . . . . . . . . . . . . . . . . Reprogrammed . | . . . . . . . . . . . . . . . . . . . . . . . . Reused . | . . . . . . . . . . . . . . . . . . . . . . . . Traps Extracted . | . . . . . . . . . . . . . . . . . . . . . . . . Installed . | . . . . . . . . . . . . . . . . . . . . . . . . Triggered . | . . . . . . . . . . . . . . . . . . . . . . . . Machines | -11 -10 -9 -9 -8 -8 -7 -7 -6 -6 -6 -6 -6 -6 -6 -5 -5 -4 -4 -3 -3 -3 -2 -2 ---------- Run | Yrd Mat Mat Min Mat Gar Fac Gar Fac Was Fac Ext Cet Arc Hub Fac Gar Fac Gar Res Tes Gar Res Qua Machines Disabled 90 | . . 5 1 1 5 . 5 4 . 1 3 1 3 . 3 9 12 11 . 1 4 7 14 Max in Single Turn 7 | . . 3 1 1 1 . 1 2 . 1 1 1 1 . 1 2 7 1 . 1 1 1 2 Garrison Access 7 | . . . . . . . . 1 . 2 . . . . 2 . . . 1 . . 1 . Garrison Relay 15 | . . . . . 3 . 3 . . . . . . . . 3 . 3 . . 3 . . Phase Generator 1 | . . . . . . . . . . . . . . . . . . 1 . . . . . Network Hub 2 | . . . . . . . . . . . . . . 2 . . . . . . . . . Machines Repaired . | . . . . . . . . . . . . . . . . . . . . . . . . Machines Dismantled . | . . . . . . . . . . . . . . . . . . . . . . . . Machines Sabotaged 1 | . . . . . . . . . . . . . . 1 . . . . . . . . . Overloaded Fab Kills . | . . . . . . . . . . . . . . . . . . . . . . . . Hacking | -11 -10 -9 -9 -8 -8 -7 -7 -6 -6 -6 -6 -6 -6 -6 -5 -5 -4 -4 -3 -3 -3 -2 -2 --------- Run | Yrd Mat Mat Min Mat Gar Fac Gar Fac Was Fac Ext Cet Arc Hub Fac Gar Fac Gar Res Tes Gar Res Qua Machines Accessed 71 | . 5 3 1 1 2 5 1 9 . 5 8 . . 2 8 2 8 2 2 1 2 3 1 Terminals 39 | . 3 3 . . 2 2 1 2 . 3 8 . . 2 2 2 3 2 1 . 2 1 . Fabricators 5 | . . . . . . . . 2 . . . . . . . . 2 . . . . 1 . Repair Stations 5 | . . . . . . . . . . 1 . . . . 2 . 1 . . . . . 1 Recycling Units 9 | . 2 . . . . 2 . 3 . 1 . . . . . . 1 . . . . . . Scanalyzers 4 | . . . . . . . . 2 . . . . . . 1 . . . 1 . . . . Garrison Access 8 | . . . . 1 . 1 . . . . . . . . 3 . 1 . . 1 . 1 . Total Hacks 167 | . 10 8 1 2 5 10 2 16 . 11 14 . . 5 32 3 26 3 4 1 4 7 3 Successful 68 | . 5 2 1 1 1 4 . 10 . 3 6 . . 3 12 2 8 2 2 1 1 3 1 Failed 99 | . 5 6 . 1 4 6 2 6 . 8 8 . . 2 20 1 18 1 2 . 3 4 2 Catastrophic 39 | . 1 1 . . 2 2 2 3 . 3 2 . . 1 11 . 8 . . . 1 1 1 Database Lockouts . | . . . . . . . . . . . . . . . . . . . . . . . . Manual 39 | . 10 4 . . 4 . . 2 . 3 . 1 . 4 3 . 4 . . . . 1 3 Terminals 92 | . 8 8 . . 5 3 2 2 . 9 14 . . 5 11 3 11 3 1 . 4 3 . Fabricators 15 | . . . . . . . . 3 . . . . . . . . 9 . . . . 3 . Repair Stations 22 | . . . . . . . . . . 1 . . . . 14 . 4 . . . . . 3 Recycling Units 13 | . 2 . . . . 5 . 4 . 1 . . . . . . 1 . . . . . . Scanalyzers 13 | . . . . . . . . 7 . . . . . . 3 . . . 3 . . . . Garrison Access 11 | . . . . 2 . 2 . . . . . . . . 4 . 1 . . 1 . 1 . Terminal Hacks 24 | . 2 2 1 . 1 1 . 1 . 1 6 . . 1 2 2 . 2 1 . 1 . . Robot Schematic 1 | . 1 . . . . . . . . . . . . . . . . . . . . . . Prototype ID Bank 2 | . 1 . . . . . . . . . . . . . 1 . . . . . . . . Open Door 10 | . . . 1 . . . . . . . 6 . . . . 1 . 1 . . 1 . . Branch Access Points 4 | . . 1 . . . . . 1 . 1 . . . . . . . . 1 . . . . Emergency Access Points 2 | . . . . . . . . . . . . . . . . 1 . 1 . . . . . Terminal Index 1 | . . . . . . . . . . . . . . 1 . . . . . . . . . Hauler Manifests 1 | . . . . . . 1 . . . . . . . . . . . . . . . . . Zone Layout 2 | . . 1 . . . . . . . . . . . . 1 . . . . . . . . Security Stations 1 | . . . . . 1 . . . . . . . . . . . . . . . . . . Fabricator Hacks 8 | . . . . . . . . 3 . . . . . . . . 3 . . . . 2 . Network Status 3 | . . . . . . . . . . . . . . . . . 2 . . . . 1 . Load Schematic 2 | . . . . . . . . 1 . . . . . . . . 1 . . . . . . Build 3 | . . . . . . . . 2 . . . . . . . . . . . . . 1 . Repair Station Hacks 6 | . . . . . . . . . . . . . . . 5 . 1 . . . . . . Scan Component 6 | . . . . . . . . . . . . . . . 5 . 1 . . . . . . Recycling Unit Hacks 4 | . . . . . . 1 . 2 . 1 . . . . . . . . . . . . . Retrieve Components 4 | . . . . . . 1 . 2 . 1 . . . . . . . . . . . . . Scanalyzer 5 | . . . . . . . . 4 . . . . . . . . . . 1 . . . . Insert Component 1 | . . . . . . . . 1 . . . . . . . . . . . . . . . Retrieve Study 4 | . . . . . . . . 3 . . . . . . . . . . 1 . . . . Garrison Access Hacks 10 | . . . . 1 . 2 . . . . . . . . 4 . 1 . . 1 . 1 . Unlock Access 5 | . . . . 1 . 1 . . . . . . . . 1 . 1 . . 1 . . . Seal Access 3 | . . . . . . . . . . . . . . . 2 . . . . . . 1 . Coupler Status 2 | . . . . . . 1 . . . . . . . . 1 . . . . . . . . Unauthorized Hacks 11 | . 3 . . . . . . . . 1 . . . 2 1 . 3 . . . . . 1 Terminals 4 | . 1 . . . . . . . . . . . . 2 . . 1 . . . . . . Botnet 2 | . 1 . . . . . . . . . . . . 1 . . . . . . . . . Operators 1 | . . . . . . . . . . . . . . . . . 1 . . . . . . Sabotage 1 | . . . . . . . . . . . . . . 1 . . . . . . . . . Fabricators 1 | . . . . . . . . . . . . . . . . . 1 . . . . . . Liberate 1 | . . . . . . . . . . . . . . . . . 1 . . . . . . Repair Stations 4 | . . . . . . . . . . 1 . . . . 1 . 1 . . . . . 1 Mechanics 2 | . . . . . . . . . . . . . . . 1 . 1 . . . . . . Patch 2 | . . . . . . . . . . 1 . . . . . . . . . . . . 1 Recycling Units 2 | . 2 . . . . . . . . . . . . . . . . . . . . . . Tunnel 2 | . 2 . . . . . . . . . . . . . . . . . . . . . . Scanalyzers . | . . . . . . . . . . . . . . . . . . . . . . . . Garrison Access . | . . . . . . . . . . . . . . . . . . . . . . . . Data Cores Recovered 4 | . . 2 . . . . . . . 1 . . . . . . . . . . . 1 . Used 1 | . . 1 . . . . . . . . . . . . . . . . . . . . . Hacking Detections 50 | . 3 3 . 1 2 4 1 8 . 3 5 . . 1 6 . 8 1 1 . 1 2 . Full Trace Events 7 | . . . . . 1 . 1 1 . 2 2 . . . . . . . . . . . . Feedback Events . | . . . . . . . . . . . . . . . . . . . . . . . . Feedback Blocked . | . . . . . . . . . . . . . . . . . . . . . . . . Robot Schematics Acquired 1 | . 1 . . . . . . . . . . . . . . . . . . . . . . Robots Built 1 | . . . . . . . . 1 . . . . . . . . . . . . . . . Authchips . | . . . . . . . . . . . . . . . . . . . . . . . . Time 81 | . . . . . . . . 81 . . . . . . . . . . . . . . . Total Robot Build Rating 1 | . . . . . . . . 1 . . . . . . . . . . . . . . . Part Schematics Acquired . | . . . . . . . . . . . . . . . . . . . . . . . . Parts Built 4 | . . . . . . . . 2 . . . . . . . . . . . . . 2 . Authchips . | . . . . . . . . . . . . . . . . . . . . . . . . Time 116 | . . . . . . . . 47 . . . . . . . . . . . . . 69 . Total Part Build Rating 28 | . . . . . . . . 10 . . . . . . . . . . . . . 18 . Part Studies Acquired 4 | . . . . . . . . 3 . . . . . . . . . . 1 . . . . Parts Repaired . | . . . . . . . . . . . . . . . . . . . . . . . . Time . | . . . . . . . . . . . . . . . . . . . . . . . . Parts Recycled . | . . . . . . . . . . . . . . . . . . . . . . . . Recycled Matter . | . . . . . . . . . . . . . . . . . . . . . . . . Retrieved Matter . | . . . . . . . . . . . . . . . . . . . . . . . . Retrieved Components 6 | . . . . . . 2 . 2 . 2 . . . . . . . . . . . . . Parts Scanalyzed 1 | . . . . . . . . 1 . . . . . . . . . . . . . . . Part Schematics Acquired . | . . . . . . . . . . . . . . . . . . . . . . . . Parts Damaged . | . . . . . . . . . . . . . . . . . . . . . . . . Bothacking | -11 -10 -9 -9 -8 -8 -7 -7 -6 -6 -6 -6 -6 -6 -6 -5 -5 -4 -4 -3 -3 -3 -2 -2 ------------ Run | Yrd Mat Mat Min Mat Gar Fac Gar Fac Was Fac Ext Cet Arc Hub Fac Gar Fac Gar Res Tes Gar Res Qua Used RIF Installer 6 | . . . . . 1 . 1 . . . . . . . . 1 . 2 . . 1 . . Coupler Efficiency 2 | . . . . . . . 1 . . . . . . . . . . 1 . . . . . Code Merge 1 | . . . . . . . . . . . . . . . . . . . . . 1 . . Command Fork 1 | . . . . . . . . . . . . . . . . 1 . . . . . . . Watcher Feeds 1 | . . . . . . . . . . . 1 . . . . . . . . . . . . Autoassimilate 1 | . . . . . . . . . . . . . . . . . . 1 . . . . . Robots Hacked 166 | . . . . . . 4 6 18 . 15 . . 1 5 12 5 13 2 2 6 17 31 29 Non-combat 63 | . . . . . . . . 16 . 12 . . 1 5 7 . 10 . . 3 1 4 4 Combat 103 | . . . . . . 4 6 2 . 3 . . . . 5 5 3 2 2 3 16 27 25 Autoassimilated 24 | . . . . . . . . . . . . . . . . . . . 2 1 6 6 9 Robot Hacks Applied 158 | . . . . . . 4 7 20 . 19 . . 3 5 12 6 14 2 . 5 11 27 23 parse_system 5 | . . . . . . . . . . . . . . . 1 2 . . . . . 1 1 no_distress 1 | . . . . . . . . 1 . . . . . . . . . . . . . . . generate_anomaly 1 | . . . . . . . . . . 1 . . . . . . . . . . . . . find_chute 2 | . . . . . . . . 1 . . . . . . . . 1 . . . . . . hold_bot 4 | . . . . . . . . 2 . 1 . . . 1 . . . . . . . . . start_disposal 1 | . . . . . . . . 1 . . . . . . . . . . . . . . . ignore_repairs 3 | . . . . . . . . 1 . 1 . . . . 1 . . . . . . . . map_walls 16 | . . . . . . . . 3 . 6 . . . . 2 . 3 . . 1 . 1 . find_fabricator 1 | . . . . . . . . . . 1 . . . . . . . . . . . . . drop_inventory 17 | . . . . . . . . 3 . 2 . . . 1 1 . 5 . . 1 . 2 2 deconstruct_bot 1 | . . . . . . . . . . . . . . . . . . . . . . . 1 purge_threat 2 | . . . . . . . . . . . . . 2 . . . . . . . . . . block_reporting 2 | . . . . . . . . . . 1 . . . 1 . . . . . . . . . mark_security 1 | . . . . . . . . . . 1 . . . . . . . . . . . . . disable_scanner 1 | . . . . . . . . . . . . . . . . . . . . 1 . . . scatter_targeting 1 | . . . . . . . . . . . . . . . . . . . . . . . 1 disrupt_area 1 | . . . . . . . . . . . . . . . . . . . . . . . 1 amplify_resonance 26 | . . . . . . . . 4 . 3 . . . 2 2 1 . . . 1 3 7 3 wipe_record 2 | . . . . . . . 2 . . . . . . . . . . . . . . . . go_dormant 1 | . . . . . . 1 . . . . . . . . . . . . . . . . . overwrite_iff 20 | . . . . . . . 2 1 . 1 . . . . 1 1 2 1 . . . 7 4 formatsys_low 10 | . . . . . . . . 2 . . . . 1 . 1 . 1 . . 1 1 1 2 formatsys_high 36 | . . . . . . 3 3 1 . 1 . . . . 3 1 2 1 . . 7 7 7 formatsys_deep 3 | . . . . . . . . . . . . . . . . 1 . . . . . 1 1 Relay Couplers Released 78 | . . . . . 11 . 13 2 . 5 . . . . . 13 4 13 4 . 13 . . Machine Destruction 74 | . . . . . 11 . 13 2 . 5 . . . . . 13 . 13 4 . 13 . . Programmers 4 | . . . . . . . . . . . . . . . . . 4 . . . . . . Attached 24 | . . . . . . 2 2 3 . 2 . . . . . 1 3 2 1 1 4 2 1 Merged Code Value 42 | . . . . . . . . . . . . . . . . . . . . . 42 . . Fabnet Peak Effective % . | . . . . . . . . . . . . . . . . . . . . . . . . Robots Rewired 44 | . . . . . . . 2 . . . 21 . . . . 8 . 7 . . 6 . . Allies Hacked 6 | . . . . . . . . . . . . . . . . . 1 . . 1 . 4 . Hacks Repelled . | . . . . . . . . . . . . . . . . . . . . . . . . Allies | -11 -10 -9 -9 -8 -8 -7 -7 -6 -6 -6 -6 -6 -6 -6 -5 -5 -4 -4 -3 -3 -3 -2 -2 -------- Run | Yrd Mat Mat Min Mat Gar Fac Gar Fac Was Fac Ext Cet Arc Hub Fac Gar Fac Gar Res Tes Gar Res Qua Total Allies 182 | . . 3 . . 1 3 9 8 . 1 30 5 1 . 6 13 4 9 2 3 23 28 33 Largest Group 17 | . . 3 . . 1 2 3 4 1 2 12 12 9 9 3 7 6 6 2 2 15 17 6 Highest-Rated Group 1040 | . . 75 . . 142 32 99 138 14 55 470 702 702 604 123 269 239 240 112 253 902 1040 394 Highest-Rated Ally 219 | . . 25 . . 142 32 40 46 14 41 159 152 143 96 79 51 142 68 56 219 119 148 119 Total Orders 27 | . . . . . . . . 4 2 3 . . 2 3 . 4 2 2 . 1 1 1 2 STAY 9 | . . . . . . . . . 1 1 . . 1 2 . 2 1 1 . . . . . FOLLOW 5 | . . . . . . . . . . 1 . . 1 1 . 1 . 1 . . . . . AID 10 | . . . . . . . . 2 1 1 . . . . . . 1 . . 1 1 1 2 DROP 1 | . . . . . . . . . . . . . . . . 1 . . . . . . . EXPLORE 2 | . . . . . . . . 2 . . . . . . . . . . . . . . . Ally Attacks 1097 | . . 44 . . 13 10 60 58 . 4 184 52 27 26 26 42 47 56 13 28 55 237 115 Total Damage 36763 | . . 942 . . 594 179 1038 1617 . 148 4141 1433 872 794 758 1123 1752 2394 652 2551 2365 9110 4300 Kills 229 | . . 16 . . 2 . 8 10 . 1 33 7 4 3 3 8 13 15 3 16 17 45 25 Allies Corrupted 13 | . . . . . . . . . . . . . . 4 . . . . 1 . 1 2 5 Allies Melted 3 | . . . . . . . 1 . . 1 . . . . . . . 1 . . . . . X0-1V1 Amusement Gains 361 | . 7 25 . . . 30 20 46 . . 35 . . 79 15 17 4 . . . 35 2 46 Good Acts 155 | . 4 5 1 . 6 1 10 11 1 15 9 3 1 2 8 8 6 10 2 4 14 5 29 Bad Acts 76 | . 5 5 2 . 2 4 6 3 . . 6 . 1 . 3 13 3 5 . 3 4 8 3 Intel | -11 -10 -9 -9 -8 -8 -7 -7 -6 -6 -6 -6 -6 -6 -6 -5 -5 -4 -4 -3 -3 -3 -2 -2 ------- Run | Yrd Mat Mat Min Mat Gar Fac Gar Fac Was Fac Ext Cet Arc Hub Fac Gar Fac Gar Res Tes Gar Res Qua Active Infowar (turns) 10115 | 29 831 342 103 . 469 395 . 901 458 1064 17 . . 263 1318 159 1409 268 656 444 452 537 . Sensors 436 | . . . . . . . . . . . . . . . 436 . . . . . . . . Seismic 8760 | 29 831 342 103 . 469 395 . 700 . 991 . . . 263 868 3 1409 268 656 444 452 537 . Jamming 1900 | . . . . . . . . 201 458 476 17 . . . 92 156 500 . . . . . . Robot Analysis Total . | . . . . . . . . . . . . . . . . . . . . . . . . Derelict Logs Recovered . | . . . . . . . . . . . . . . . . . . . . . . . . Drone Launches 2 | . . . . . . . . 2 . . . . . . . . . . . . . . . Drone Recoveries . | . . . . . . . . . . . . . . . . . . . . . . . . Exploration | -11 -10 -9 -9 -8 -8 -7 -7 -6 -6 -6 -6 -6 -6 -6 -5 -5 -4 -4 -3 -3 -3 -2 -2 ------------- Run | Yrd Mat Mat Min Mat Gar Fac Gar Fac Was Fac Ext Cet Arc Hub Fac Gar Fac Gar Res Tes Gar Res Qua Turns Passed 24424 | 114 1215 870 162 49 1011 572 1594 1505 704 1688 1677 725 200 315 1334 2016 1428 1806 747 811 1487 1340 1054 Spaces Moved 10758 | 51 592 408 79 25 494 293 723 723 386 744 642 301 63 161 715 669 603 675 327 345 738 534 467 Core 114 | 4 . . . . . . . . . . . . . . . . . . . . . . 110 Treads 4217 | 47 189 . . . 2 . . 302 364 716 270 186 63 61 32 169 . . . 220 738 534 324 Legs 1769 | . . . . . . . . . . . . . . . . 36 603 675 327 125 . . 3 Wheels 4628 | . 403 408 79 25 492 293 723 421 22 28 372 115 . 100 683 464 . . . . . . . Hover . | . . . . . . . . . . . . . . . . . . . . . . . . Flight 30 | . . . . . . . . . . . . . . . . . . . . . . . 30 Fastest Speed 35 | 50 140 140 150 165 165 165 165 125 125 150 130 130 240 130 130 190 120 190 190 160 160 160 35 Average Speed 171 | 151 150 152 153 165 165 165 166 142 158 167 176 197 240 173 161 231 189 190 190 171 160 181 129 Slowest Speed 400 | 160 160 155 165 165 400 180 180 245 245 240 240 240 240 240 240 320 190 190 190 198 160 231 300 Overloaded Moves . | . . . . . . . . . . . . . . . . . . . . . . . . Propulsion Burnouts . | . . . . . . . . . . . . . . . . . . . . . . . . Robots Hopped 3 | . . . . . . . . . . . . . . . . . . . . . . . 3 Potential Cave-ins 5 | . . 1 . . . . . . . . . . . . . . 2 . . . . . 2 Cave-ins Triggered . | . . . . . . . . . . . . . . . . . . . . . . . . Exploration Rate (%) 51 | 4 93 48 20 3 80 8 83 33 95 30 89 68 75 45 29 82 27 69 10 63 91 22 67 Regions Visited 23 Branch Regions 7 Pre-discovered Areas 2 | . 2 . . . . . . . . . . . . . . . . . . . . . . Known Exits Taken 12 | . 1 1 . 1 . 1 . . . 1 . . 1 1 1 . 1 . 1 1 . 1 . Unknown Exits Taken 4 | 1 . . 1 . . . . . . . 1 1 . . . . . . . . . . . Scrap Searched 1 | . . . 1 . . . . . . . . . . . . . . . . . . . . Spaces Dug 89 | . . . . . . . 11 1 . 4 2 . . 1 14 4 4 1 12 6 10 12 7 Terrain Destroyed 701 | . . 53 . . 25 1 90 18 . 33 52 2 . 5 31 12 89 16 19 9 13 51 182 Melee 44 | . . . . . . . 4 1 . 4 2 . . . 7 3 . 1 4 5 10 2 1 Projectile 174 | . . . . . 1 1 1 . . 23 14 2 . 5 8 7 25 8 15 4 . 49 11 AOE 482 | . . 53 . . 24 . 85 17 . 6 36 . . . 16 2 64 6 . . 3 . 170 Terrain Rammed . | . . . . . . . . . . . . . . . . . . . . . . . . Walls Destroyed . | . . . . . . . . . . . . . . . . . . . . . . . . Machines Disabled . | . . . . . . . . . . . . . . . . . . . . . . . . Actions | -11 -10 -9 -9 -8 -8 -7 -7 -6 -6 -6 -6 -6 -6 -6 -5 -5 -4 -4 -3 -3 -3 -2 -2 --------- Run | Yrd Mat Mat Min Mat Gar Fac Gar Fac Was Fac Ext Cet Arc Hub Fac Gar Fac Gar Res Tes Gar Res Qua Total 14743 | 75 775 562 104 29 605 349 951 1024 465 1007 1062 384 87 182 835 998 768 1063 407 533 960 761 757 Wait 939 | 4 49 57 1 . 27 9 19 108 16 90 108 30 2 7 23 95 35 59 20 26 51 59 44 Move 10732 | 50 591 407 78 25 493 292 722 723 385 743 641 300 62 160 714 668 602 674 327 344 737 533 461 Hop 3 | . . . . . . . . . . . . . . . . . . . . . . . 3 Pick Up 265 | 4 27 11 2 . 7 6 20 18 16 8 10 7 1 . 9 17 9 22 2 22 14 18 15 Fast Attach 164 | 8 2 7 2 1 . 3 7 12 5 9 4 2 . . 9 22 5 18 1 15 2 7 23 Attach 120 | 1 2 2 . 1 3 4 7 10 1 5 4 1 . 1 5 7 12 12 2 11 10 3 16 Detach 28 | . . . . . . . . 2 . 1 1 . . . 2 4 2 6 . 6 1 . 3 Swap 332 | . 11 11 7 1 12 8 23 41 6 46 8 10 4 2 14 15 22 20 13 26 7 13 12 Drop 302 | 3 15 19 7 . 7 7 19 18 22 11 10 11 1 . 9 27 1 28 2 35 13 17 20 Fire 1184 | 5 76 48 7 1 49 10 91 85 1 87 59 23 17 12 36 96 79 66 30 24 49 105 128 Melee 182 | . . . . . . 8 10 5 10 4 5 . . . 14 7 . 49 10 24 17 4 15 Ram 5 | . . . . . . 1 . 2 . . 2 . . . . . . . . . . . . Kick 1 | . . . . . . . . . . . . . . . . . 1 . . . . . . Crush 7 | . 2 . . . . . . . . 3 1 . . . . . . . . . . . 1 Escape Stasis 91 | . . . . . 7 . 32 . . . 8 . . . . 6 . 20 . . . 2 16 Rewire 388 | . . . . . . 1 1 . 3 . 201 . . . . 34 . 89 . . 59 . . Trap . | . . . . . . . . . . . . . . . . . . . . . . . . Miscellaneous . | . . . . . . . . . . . . . . . . . . . . . . . . Route ------- -11/Scrapyard -10/Materials (discovered 5 exits: *Mat x2 / [*Min x2] / [*Sub]) -9/Materials (discovered 3 exits: *Mat x2 / *Min) -9/Mines -8/Materials -8/Garrison (discovered 3 exits: *Fac x3) -7/Factory -7/Garrison (discovered 3 exits: *Fac x3) -6/Factory (discovered 5 exits: *Fac / *Low x2 / Ext x2) -6/Waste -6/Factory (discovered 5 exits: *Fac / Low x2 / *Ext x2) -6/Extension (discovered 2 exits: *Fac / *Cet) -6/Cetus (discovered 2 exits: *Fac / [*Arc]) -6/Archives (discovered 3 exits: *Fac / *Hub x2) -6/Hub_04(d) (discovered 2 exits: *Fac x2) -5/Factory (discovered 4 exits: *Fac / *Upp x2 / Gar) -5/Garrison (discovered 2 exits: *Fac x2) -4/Factory (discovered 3 exits: *Res / Upp / Gar) -4/Garrison (discovered 3 exits: *Res x3) -3/Research (discovered 3 exits: Arm / *Tes x2) -3/Testing (discovered 2 exits: *Res / Gar) -3/Garrison (discovered 3 exits: *Res x3) -2/Research (discovered 2 exits: [*Acc] / *Qua) -2/Quarantine (discovered 1 exit: [*Acc]) History --------- Turn | Location | Event 47 | -11/Scrapyard | Discovered new exit (range 15) 115 | -11/Scrapyard | Entered Materials 156 | -10/Materials | Discovered new exit (range 15) 306 | -10/Materials | Build established: Mutant 331 | -10/Materials | Discovered new exit (range 8) 831 | -10/Materials | Discovered new exit (range 14) 846 | -10/Materials | Prayed at D.C.S.S. Altar Unit 935 | -10/Materials | Discovered new exit (range 13) 943 | -10/Materials | X0-1V1 sent hostile S-10 Pest (x3) 1018 | -10/Materials | Core integrity fell below 50% 1138 | -10/Materials | Melee accuracy permanently improved by X0-1V1 (+5%) 1143 | -10/Materials | Identified exit to Materials 1143 | -10/Materials | X0-1V1 revealed exit location to -9/Materials 1330 | -10/Materials | Entered another Materials area 1330 | -9/Materials | Evolved 2 slots: Utility x1, Weapon x1 1566 | -9/Materials | X0-1V1 sent you to a vault 1575 | -9/Materials | Discovered new exit (range 7) 1757 | -9/Materials | Discovered new exit (range 16) 1894 | -9/Materials | Build established: Scavenger-Gunner 1941 | -9/Materials | Identified exit to Mines 1959 | -9/Materials | X0-1V1 upgraded hostiles (x1) 1980 | -9/Materials | X0-1V1 sent someone to clean up after you 2015 | -9/Materials | X0-1V1 activates XOMVISION 2033 | -9/Materials | Discovered new exit (range 11) 2173 | -9/Materials | X0-1V1 sent hostile S-10 Pest (x4) 2195 | -9/Materials | Build established: Gunner 2200 | -9/Materials | Entered Mines 2238 | -9/Mines | X0-1V1 added 0b10 threat records associated with you (considerable) 2287 | -9/Mines | Discovered new exit (range 14) 2306 | -9/Mines | Found the Drone Emporium 2334 | -9/Mines | Found Prototype Device 2362 | -9/Mines | Entered Materials 2362 | -8/Materials | Evolved 2 slots: Utility x2 2411 | -8/Materials | Identified exit to Garrison 2411 | -8/Materials | Entered Garrison 2421 | -8/Garrison | Learned Factory security intel 2431 | -8/Garrison | Sight range permanently improved by X0-1V1 (+1) 2474 | -8/Garrison | X0-1V1 vaporized surrounding terrain (radius 22) 2481 | -8/Garrison | Triggered checkpoint 2514 | -8/Garrison | Triggered checkpoint 2577 | -8/Garrison | Build established: Scavenger-Gunner 2646 | -8/Garrison | Installed Relay Interface Framework 2680 | -8/Garrison | Discovered new exit (range 10) 2709 | -8/Garrison | Triggered checkpoint 2796 | -8/Garrison | Garrison Relay disabled 2819 | -8/Garrison | Garrison Relay disabled 2902 | -8/Garrison | Triggered checkpoint 2905 | -8/Garrison | X0-1V1 sent allied H-71 Marshal (x1) 2932 | -8/Garrison | Triggered checkpoint 3069 | -8/Garrison | Triggered checkpoint 3075 | -8/Garrison | Core integrity permanently improved by X0-1V1 (+250) 3087 | -8/Garrison | Garrison Relay disabled 3113 | -8/Garrison | Build established: Bothacker-Gunner 3139 | -8/Garrison | Discovered new exit (range 13) 3315 | -8/Garrison | Triggered checkpoint 3394 | -8/Garrison | Discovered new exit (range 11) 3422 | -8/Garrison | Entered Factory 3422 | -7/Factory | Evolved 2 slots: Utility x1, Weapon x1 3844 | -7/Factory | Garrison activated, responded to threat 3963 | -7/Factory | Identified exit to Garrison 3994 | -7/Factory | Entered Garrison 3994 | -7/Garrison | Accompanied by 2 allies 4054 | -7/Garrison | X0-1V1 sent you into danger 4070 | -7/Garrison | System corruption reached 10% 4131 | -7/Garrison | Garrison Relay disabled 4147 | -7/Garrison | X0-1V1 activates XOMVISION 4154 | -7/Garrison | Triggered checkpoint 4228 | -7/Garrison | X0-1V1 sent you into danger 4297 | -7/Garrison | Triggered checkpoint 4409 | -7/Garrison | Discovered new exit (range 11) 4423 | -7/Garrison | Expanded RIF knowledge: Coupler Efficiency 4448 | -7/Garrison | Triggered checkpoint 4467 | -7/Garrison | Garrison Relay disabled 4582 | -7/Garrison | Triggered checkpoint 4627 | -7/Garrison | Triggered checkpoint 4720 | -7/Garrison | Discovered new exit (range 12) 4830 | -7/Garrison | Rescued a captive Derelict 4830 | -7/Garrison | Rescued a captive Derelict 4928 | -7/Garrison | Garrison Relay disabled 5058 | -7/Garrison | Identified exit to Factory 5058 | -7/Garrison | X0-1V1 revealed exit location to -6/Factory 5074 | -7/Garrison | Triggered checkpoint 5331 | -7/Garrison | X0-1V1 mutated your Weapon slot to Propulsion slot 5390 | -7/Garrison | X0-1V1 sent you into danger 5513 | -7/Garrison | Triggered checkpoint 5588 | -7/Garrison | Entered Factory 5588 | -6/Factory | Accompanied by 3 allies 5588 | -6/Factory | Evolved 2 slots: Propulsion x1, Utility x1 5689 | -6/Factory | Identified Bomb Drone Bay 5769 | -6/Factory | Lost 7 allies 5977 | -6/Factory | Identified exit to Lower Caves 5977 | -6/Factory | Identified exit to Extension 6058 | -6/Factory | Garrison activated, responded to threat 6168 | -6/Factory | Fabricated Plasma Rifle (x2) 6240 | -6/Factory | X0-1V1 sent you to a vault 6325 | -6/Factory | X0-1V1 added 0b10 threat records associated with you (major) 6469 | -6/Factory | Discovered new exit (range 5) 6633 | -6/Factory | X0-1V1 whisked you away to safety 6638 | -6/Factory | First assault squad dispatched 6805 | -6/Factory | X0-1V1 activates XOMVISION 6885 | -6/Factory | Fabricated M-13 Machinist? 6909 | -6/Factory | Destroyed 7 combat bots 6915 | -6/Factory | Lost 3 parts (1n2u) 7093 | -6/Factory | Sucked down chute 7093 | -6/Factory | Entered Waste 7093 | -6/Waste | The area was eerily silent 7103 | -6/Waste | 1 allies followed down the chute 7507 | -6/Waste | Identified exit to Factory 7507 | -6/Waste | X0-1V1 revealed exit location to -6/Factory 7530 | -6/Waste | Build established: Bothacker-Mutant 7797 | -6/Waste | Entered Factory 7797 | -6/Factory | Accompanied by 1 ally 7916 | -6/Factory | X0-1V1 released a cloud of subatomizers 7956 | -6/Factory | Discovered new exit (range 4) 7960 | -6/Factory | Build established: Bothacker-Tank 8869 | -6/Factory | X0-1V1 foreshadows a heat wave 9066 | -6/Factory | Ambient heat levels rising (+10) 9067 | -6/Factory | Weapon slot count temporarily expanded by X0-1V1 (+3) 9123 | -6/Factory | Cargo convoy interrupted 9167 | -6/Factory | Lost 3 parts (1u2w) 9187 | -6/Factory | Sterilization system engaged 9187 | -6/Factory | Non-combat units ordered to evacuate 9204 | -6/Factory | Ambient heat levels rising (+10) 9226 | -6/Factory | X0-1V1 activates XOMVISION 9287 | -6/Factory | Combat units ordered to evacuate 9358 | -6/Factory | Build established: Executioner 9482 | -6/Factory | Ambient heat levels falling (-10) 9485 | -6/Factory | Entered Extension 9603 | -6/Extension | Expanded RIF knowledge: Watcher Feeds 9611 | -6/Extension | Core integrity fell below 50% 9644 | -6/Extension | Rescued a captive Derelict 9645 | -6/Extension | Rescued a captive Derelict 9669 | -6/Extension | Rescued a captive Derelict 9670 | -6/Extension | Rescued a captive Derelict 9764 | -6/Extension | Build established: Mutant 9765 | -6/Extension | Rescued A7 9777 | -6/Extension | Lost 3 allies 9835 | -6/Extension | First assault squad dispatched 9875 | -6/Extension | X0-1V1 added 0b10 threat records associated with you (minor) 9971 | -6/Extension | Lost 5 allies 10013 | -6/Extension | Lost 4 allies 10039 | -6/Extension | Rescued a captive Derelict 10039 | -6/Extension | Rescued a captive Derelict 10327 | -6/Extension | Identified exit to Factory 10327 | -6/Extension | X0-1V1 revealed exit location to -5/Factory 10336 | -6/Extension | Allies destroyed B-75 Beast 10371 | -6/Extension | Spotted B-75 Beast 10405 | -6/Extension | Destroyed B-75 Beast 10411 | -6/Extension | Lost 4 allies 10591 | -6/Extension | Rescued a captive Derelict 10671 | -6/Extension | Build established: Tank 10716 | -6/Extension | X0-1V1 activates XOMVISION 10893 | -6/Extension | Core integrity restored by X0-1V1 (+234) 11063 | -6/Extension | Build established: Commander-Tank 11068 | -6/Extension | Rescued a captive Derelict 11116 | -6/Extension | Discovered new exit (range 6) 11162 | -6/Extension | Entered Cetus 11162 | -6/Cetus | Accompanied by 12 allies (A7) 11167 | -6/Cetus | Acquired a Cetus Manufacturing Module code from A7 11210 | -6/Cetus | Spotted Cetus Guard 11210 | -6/Cetus | Spotted Cetus Guard 11211 | -6/Cetus | Spotted Cetus Guard 11213 | -6/Cetus | Spotted Cetus Guard 11221 | -6/Cetus | Allies destroyed Cetus Guard 11230 | -6/Cetus | Allies destroyed Cetus Guard 11231 | -6/Cetus | Destroyed Cetus Guard 11233 | -6/Cetus | Allies destroyed Cetus Guard 11341 | -6/Cetus | Started Cetus Manufacturing Module 11353 | -6/Cetus | Escorted A7 to Cetus Mainframe 11366 | -6/Cetus | Manufactured an Enhanced Grunt 11366 | -6/Cetus | Discovered new exit (range 18) 11387 | -6/Cetus | Discovered exit to Factory (range 27) 11390 | -6/Cetus | Spotted Cetus Guard 11391 | -6/Cetus | Manufactured an Enhanced Grunt 11391 | -6/Cetus | Spotted Cetus Guard 11392 | -6/Cetus | Spotted Cetus Guard 11393 | -6/Cetus | Spotted Cetus Guard 11404 | -6/Cetus | Allies destroyed Cetus Guard 11413 | -6/Cetus | Destroyed Cetus Guard 11413 | -6/Cetus | Allies destroyed Cetus Guard 11416 | -6/Cetus | Manufactured an Enhanced Grunt 11419 | -6/Cetus | Allies destroyed Cetus Guard 11441 | -6/Cetus | Manufactured an Enhanced Grunt 11450 | -6/Cetus | Lost 5 allies 11459 | -6/Cetus | Met Revision 17 11466 | -6/Cetus | Manufactured an Enhanced Grunt 11887 | -6/Cetus | Entered Archives 11887 | -6/Archives | Accompanied by 9 allies (A7) 11892 | -6/Archives | Received a hacking code to weaken MAIN.C 11948 | -6/Archives | Discovered new exit (range 19) 11991 | -6/Archives | Identified exit to Hub_04(d) 11991 | -6/Archives | X0-1V1 revealed exit location to -6/Hub_04(d) 12020 | -6/Archives | X0-1V1 added 0b10 threat records associated with you (major) 12035 | -6/Archives | Discovered exit to Factory (range 17) 12087 | -6/Archives | Entered Hub_04(d) 12087 | -6/Hub_04(d) | Accompanied by 9 allies 12273 | -6/Hub_04(d) | Discovered exit to Factory (range 8) 12308 | -6/Hub_04(d) | Discovered exit to Factory (range 21) 12320 | -6/Hub_04(d) | Network Hub disabled 12369 | -6/Hub_04(d) | Weapon slot count temporarily expanded by X0-1V1 (+4) 12373 | -6/Hub_04(d) | Spotted Lightning 12375 | -6/Hub_04(d) | Spotted Lightning 12377 | -6/Hub_04(d) | Network Hub disabled 12382 | -6/Hub_04(d) | Spotted Lightning 12402 | -6/Hub_04(d) | Lost 7 allies 12402 | -6/Hub_04(d) | Entered Factory 12402 | -5/Factory | Evolved 2 slots: Utility x2 12442 | -5/Factory | X0-1V1 sent allied Knight (x1) 12482 | -5/Factory | X0-1V1 sent you to a vault 12535 | -5/Factory | X0-1V1 activates XOMVISION 12544 | -5/Factory | Discovered new exit (range 20) 12546 | -5/Factory | Discovered new exit (range 30) 12658 | -5/Factory | Allied Derelicts emerged from ambush trap array 12768 | -5/Factory | Build established: Tank 12911 | -5/Factory | Discovered new exit (range 8) 12920 | -5/Factory | Identified exit to Upper Caves 13018 | -5/Factory | Garrison activated, responded to threat 13111 | -5/Factory | Build established: Mutant 13196 | -5/Factory | X0-1V1 redirected Transport squads to designated parking area 13467 | -5/Factory | Spotted B-75 Beast 13467 | -5/Factory | X0-1V1 sent you into danger 13473 | -5/Factory | X0-1V1 whisked you away to safety 13561 | -5/Factory | X0-1V1 mutated your Propulsion slot to Power slot 13577 | -5/Factory | Identified exit to Factory 13719 | -5/Factory | Identified exit to Garrison 13736 | -5/Factory | Entered Garrison 13736 | -5/Garrison | Accompanied by 1 ally 13968 | -5/Garrison | Triggered checkpoint 14022 | -5/Garrison | Expanded RIF knowledge: Command Fork 14046 | -5/Garrison | Garrison Relay disabled 14247 | -5/Garrison | Triggered checkpoint 14292 | -5/Garrison | Triggered checkpoint 14304 | -5/Garrison | Weapon slot count temporarily expanded by X0-1V1 (+3) 14319 | -5/Garrison | Triggered checkpoint 14325 | -5/Garrison | Destroyed 8 combat bots 14487 | -5/Garrison | Garrison Relay disabled 14527 | -5/Garrison | Triggered checkpoint 14547 | -5/Garrison | Discovered exit to Factory (range 10) 14600 | -5/Garrison | Triggered checkpoint 14669 | -5/Garrison | Build established: Bothacker-Executioner 14858 | -5/Garrison | Lost 4 allies 14875 | -5/Garrison | X0-1V1 vaporized surrounding terrain (radius 21) 14942 | -5/Garrison | X0-1V1 sent you into danger 14994 | -5/Garrison | System corruption reached 10% 15170 | -5/Garrison | Triggered checkpoint 15244 | -5/Garrison | X0-1V1 sent you into danger 15254 | -5/Garrison | Garrison Relay disabled 15417 | -5/Garrison | X0-1V1 vaporized surrounding terrain (radius 24) 15419 | -5/Garrison | Assimilated Heavy ARC 6a with formatsys_deep 15422 | -5/Garrison | Triggered checkpoint 15699 | -5/Garrison | Found Adv. Force Booster 15731 | -5/Garrison | Discovered exit to Factory (range 9) 15752 | -5/Garrison | Entered Factory 15752 | -4/Factory | Accompanied by 6 allies 15752 | -4/Factory | Evolved 2 slots: Propulsion x1, Utility x1 15945 | -4/Factory | Build established: Botlord-Tank 16000 | -4/Factory | X0-1V1 sent you into danger 16436 | -4/Factory | Discovered new exit (range 16) 16502 | -4/Factory | First assault squad dispatched 16661 | -4/Factory | Identified exit to Upper Caves 16661 | -4/Factory | X0-1V1 revealed exit location to -4/Upper Caves 16664 | -4/Factory | Build established: Bothacker-Gunner 16803 | -4/Factory | Allied Derelicts emerged from ambush trap array 16878 | -4/Factory | Lost 4 allies 16900 | -4/Factory | Destroyed 7 combat bots 16989 | -4/Factory | X0-1V1 mutated your Propulsion slot to Utility slot 17009 | -4/Factory | System corruption reached 10% 17093 | -4/Factory | Garrison activated, responded to threat 17138 | -4/Factory | Lost 5 parts (1p4u) 17170 | -4/Factory | Identified exit to Garrison 17180 | -4/Factory | Entered Garrison 17180 | -4/Garrison | Accompanied by 1 ally 17224 | -4/Garrison | Phase Generator disabled 17433 | -4/Garrison | Sensors blinded by X0-1V1 17554 | -4/Garrison | Triggered checkpoint 17562 | -4/Garrison | Garrison Relay disabled 17571 | -4/Garrison | Lost 6 allies 17573 | -4/Garrison | X0-1V1 sent hostile G-67 Veteran (x5) 17738 | -4/Garrison | Triggered checkpoint 17790 | -4/Garrison | Triggered checkpoint 17860 | -4/Garrison | Lost 4 parts (1p2u1w) 17862 | -4/Garrison | Destroyed 7 combat bots 17951 | -4/Garrison | X0-1V1 sent you into danger 18001 | -4/Garrison | Discovered new exit (range 4) 18115 | -4/Garrison | Identified exit to Research 18115 | -4/Garrison | X0-1V1 revealed exit location to -3/Research 18195 | -4/Garrison | Expanded RIF knowledge: Coupler Efficiency 18292 | -4/Garrison | Build established: Scavenger-Gladiator 18292 | -4/Garrison | Triggered checkpoint 18305 | -4/Garrison | Triggered checkpoint 18337 | -4/Garrison | Found Adv. Force Booster 18428 | -4/Garrison | Triggered checkpoint 18561 | -4/Garrison | Triggered checkpoint 18572 | -4/Garrison | Triggered checkpoint 18607 | -4/Garrison | Core integrity restored by X0-1V1 (+276) 18648 | -4/Garrison | Triggered checkpoint 18683 | -4/Garrison | Discovered exit to Research (range 11) 18786 | -4/Garrison | Expanded RIF knowledge: Autoassimilate 18910 | -4/Garrison | Garrison Relay disabled 18986 | -4/Garrison | Entered Research 18986 | -3/Research | Accompanied by 2 allies 18986 | -3/Research | Evolved 2 slots: Propulsion x2 19186 | -3/Research | Revision forces began assault on 0b10 19227 | -3/Research | Met up with Revision 17++ 19249 | -3/Research | Identified exit to Armory 19249 | -3/Research | Identified exit to Testing 19334 | -3/Research | Lost 5 allies 19686 | -3/Research | Research terminal network offline 19733 | -3/Research | Entered Testing 19793 | -3/Testing | Found Prototype Energy Cannon 19795 | -3/Testing | Identified Hpw. Disruptor Cannon 19822 | -3/Testing | X0-1V1 sent hostile P-70 Sage (x2) 19983 | -3/Testing | First assault squad dispatched 20045 | -3/Testing | Spotted PP-5BAE6OHXZH 20079 | -3/Testing | System corruption reached 10% 20088 | -3/Testing | X0-1V1 sent allied B-99 Colossus (x1) 20089 | -3/Testing | Destroyed PP-5BAE6OHXZH 20118 | -3/Testing | X0-1V1 enhanced Transport squad support 20150 | -3/Testing | X0-1V1 mutated your Utility slot to Propulsion slot 20252 | -3/Testing | Discovered new exit (range 11) 20514 | -3/Testing | Identified exit to Garrison 20544 | -3/Testing | Entered Garrison 20589 | -3/Garrison | Expanded RIF knowledge: Code Merge 20612 | -3/Garrison | Triggered checkpoint 20683 | -3/Garrison | Garrison Relay disabled 20762 | -3/Garrison | Spotted B-86 Titan 20762 | -3/Garrison | Triggered checkpoint 20765 | -3/Garrison | Assimilated Titan 8a with formatsys_high 20792 | -3/Garrison | Discovered new exit (range 12) 20792 | -3/Garrison | X0-1V1 whisked you away to safety 20794 | -3/Garrison | X0-1V1 sent allied D-63 Destroyer (x2) 20796 | -3/Garrison | Triggered checkpoint 20894 | -3/Garrison | Triggered checkpoint 20899 | -3/Garrison | Build established: Botlord-Tank 20931 | -3/Garrison | X0-1V1 mutated your Propulsion slot to Weapon slot 20963 | -3/Garrison | Lost 3 allies 21076 | -3/Garrison | Discovered new exit (range 8) 21089 | -3/Garrison | Triggered checkpoint 21191 | -3/Garrison | Forcibly received Sfc. Transmogifier from X0-1V1 21322 | -3/Garrison | Triggered checkpoint 21465 | -3/Garrison | Discovered new exit (range 16) 21488 | -3/Garrison | Triggered checkpoint 21515 | -3/Garrison | Garrison Relay disabled 21860 | -3/Garrison | X0-1V1 activates XOMVISION 21928 | -3/Garrison | Rewired Executioner 21940 | -3/Garrison | Rewired Executioner 22031 | -3/Garrison | Entered Research 22031 | -2/Research | Accompanied by 15 allies 22031 | -2/Research | Evolved 2 slots: Power x1, Utility x1 22120 | -2/Research | Fabricated Lgt. Quantum Reactor (x2) 22241 | -2/Research | Build established: Commander-Tank 22343 | -2/Research | Spotted B-90 Cyclops 22361 | -2/Research | Identified exit to Quarantine 22361 | -2/Research | X0-1V1 revealed exit location to -2/Quarantine 22376 | -2/Research | Lost 7 allies 22445 | -2/Research | P-80 Master assimilated allied Terminator 9b 22531 | -2/Research | First assault squad dispatched 22555 | -2/Research | Spotted B-90 Cyclops 22558 | -2/Research | Assimilated Cyclops 9a with formatsys_high 22614 | -2/Research | Lost 3 allies 22632 | -2/Research | Found Prototype Processor 22632 | -2/Research | Identified Exp. Core Analyzer 22646 | -2/Research | Found Prototype Processor 22659 | -2/Research | Build established: Botlord-Tank 22814 | -2/Research | Discovered new exit (range 5) 22932 | -2/Research | High security lockdown imminent 22941 | -2/Research | Lost 5 allies 23012 | -2/Research | High security lockdown engaged 23145 | -2/Research | P-80 Master assimilated allied G-73 Enforcer 23173 | -2/Research | Assimilated Heavy ARC 9a with formatsys_deep 23198 | -2/Research | Destroyed 12 combat bots 23216 | -2/Research | Spotted Investigator 23221 | -2/Research | Lost 3 allies 23227 | -2/Research | Allies destroyed Investigator 23237 | -2/Research | Found Prototype Launcher 23293 | -2/Research | Master 9a assimilated hostile Y-72 Warden 23320 | -2/Research | X0-1V1 rewrote Master 9a IFF filter 23358 | -2/Research | Door terminal overloaded 23371 | -2/Research | Entered Quarantine 23375 | -2/Quarantine | Identified Containment Facilitator 23427 | -2/Quarantine | Found Alien Artifact 23451 | -2/Quarantine | High security lockdown imminent 23476 | -2/Quarantine | Discovered new exit (range 17) 23494 | -2/Quarantine | Found Alien Impact Weapon 23519 | -2/Quarantine | Found Hellfire Missile Launcher 23530 | -2/Quarantine | Found Hellfire Missile Launcher 23531 | -2/Quarantine | High security lockdown engaged 23572 | -2/Quarantine | X0-1V1 downgraded hostiles (x4) 23581 | -2/Quarantine | Assimilated Heavy ARC 9b with formatsys_deep 23633 | -2/Quarantine | Lost 10 allies 23654 | -2/Quarantine | Spotted Striker 23658 | -2/Quarantine | Spotted Investigator 23661 | -2/Quarantine | Scanned by Researcher 23668 | -2/Quarantine | Garrison activated, responded to threat 23680 | -2/Quarantine | Allies destroyed Investigator 23689 | -2/Quarantine | Allies destroyed Striker 23738 | -2/Quarantine | Destroyed 7 combat bots 23778 | -2/Quarantine | Lost 10 allies 23843 | -2/Quarantine | Spotted Executioner 23848 | -2/Quarantine | Spotted Investigator 23851 | -2/Quarantine | Spotted Striker 23851 | -2/Quarantine | Spotted Executioner 23863 | -2/Quarantine | System corruption reached 10% 23863 | -2/Quarantine | Destroyed Investigator 23865 | -2/Quarantine | Destroyed Executioner 23870 | -2/Quarantine | Destroyed Executioner 23870 | -2/Quarantine | Destroyed Striker 23901 | -2/Quarantine | Lost 6 parts (2p1u3w) 23905 | -2/Quarantine | Destroyed 23 combat bots 23917 | -2/Quarantine | Adv. Heavy Siege Treads+ reconfigured into Item Mimic 23972 | -2/Quarantine | Lost 10 parts (1p4n3u2w) 23987 | -2/Quarantine | Core integrity restored by X0-1V1 (+420) 24012 | -2/Quarantine | Spotted Executioner 24012 | -2/Quarantine | Spotted Striker 24015 | -2/Quarantine | Spotted Striker 24042 | -2/Quarantine | X0-1V1 whisked you away to safety 24179 | -2/Quarantine | Identified Core Stripper 24187 | -2/Quarantine | Destroyed Striker 24237 | -2/Quarantine | Destroyed Striker 24286 | -2/Quarantine | X0-1V1 mutated your Weapon slot to Utility slot 24294 | -2/Quarantine | Spotted Executioner 24294 | -2/Quarantine | Spotted Executioner 24304 | -2/Quarantine | Spotted Investigator 24304 | -2/Quarantine | Identified Exp. Targeting Computer 24307 | -2/Quarantine | X0-1V1 downgraded hostiles (x5) 24324 | -2/Quarantine | Weapon slot count temporarily expanded by X0-1V1 (+1) 24329 | -2/Quarantine | Core integrity restored by X0-1V1 (+270) 24341 | -2/Quarantine | Lost 5 parts (2p1n1u1w) 24346 | -2/Quarantine | Spotted Striker 24348 | -2/Quarantine | X0-1V1 sent allied Fireman (x2) 24359 | -2/Quarantine | System corruption reached 30% 24375 | -2/Quarantine | Core integrity fell below 50% 24376 | -2/Quarantine | X0-1V1 sent allied Executioner (x2) 24380 | -2/Quarantine | Destroyed Investigator 24383 | -2/Quarantine | Core integrity fell below 20% 24386 | -2/Quarantine | X0-1V1 whisked you away to safety 24394 | -2/Quarantine | Spotted Fortress 24414 | -2/Quarantine | Lost 9 parts (3n5u1w) 24425 | -2/Quarantine | Destroyed by Fortress with Graviton Cannon Last Messages --------------- 24383_ Slug penetrates Executioner. 24384_ Slug penetrates G-73 Enforcer. 24384_ Penetrated by Slug. 24385_ Slug penetrates H-77 Assassin. 24386_ Executioner destroyed. 24386_ X0-1V1: "You need a change of scenery." 24387_ >> Watcher Feeds: Established visual feed link with W-44 Eye. 24390_ >> Watcher Feeds: Feed link from W-44 Eye lost. 24392_ >> Watcher Feeds: Established visual feed link with W-44 Eye. 24398_ System corrupted: Matter fused (-10). 24398_ Knocked back. X0-1V1's Piety Tracker suddenly appears amidst shimmering waves of color. 24402_ >> Watcher Feeds: Established visual feed link with W-44 Eye. 24405_ Knocked back. 24413_ System corrupted: Heat flow error (+170). 24425_ Core Stripper destroyed. 24425_ X0-1V1 is amused. 24425_ Relay Coupler [NC] destroyed. 24425_ >> Watcher Feeds: All visual feed links lost. 24425_ X0-1V1 chortles! Map ----- +----------------------------------------------------+ | | | | | | | | | | | | | | | | | | | | | | | | | | | ?????????????????????????????????????????????????? | | ?????????????????????????????????????????????????? | | ?????????????????????????????????????????????????? | | ??????????????????##?????????????????????????????? | | ?##################;############################## | | ## | | + | | + % ! | | + %% w | | + [![ % | | #" | | ########################; FFF ################## | | #??????????????????????##@FFF ""#????????????????? | | ##??????????????????????# FFF ""#????????????????? | | ##?????????????????????#;"" ""#????????????????? | | #????????????????????# #"" ""#????????????????? | | ###???????????????????#?#"""""""#????????????????? | | # #?????????????????????#########????????????????? | | #??????????????????????????????????????????????? | | #???????????????????????????????????????????????? | | ##???????????????????????????????????????????????? | | #????????????????????????????????????????????????? | | #????????????????????????????????????????????????? | | #????????????????????????????????????????????????? | | ?????????????????????????????????????????????????? | | #????????????????????????????????????????????????? | | #????????????????????????????????????????????????? | | #????????????????????????????????????????????????? | | ?????????????????????????????????????????????????? | | ?????????????????????????????????????????????????? | | ?????????????????????????????????????????????????? | | ?????????????????????????????????????????????????? | | ?????????????????????????????????????????????????? | | ?????????????????????????????????????????????????? | | ?????????????????????????????????????????????????? | | ?????????????????????????????????????????????????? | | ?????????????????????????????????????????????????? | +----------------------------------------------------+ Best States ------------- Heat Dissipation 151 Coolant Potential 100 Energy Generation 63 Energy Capacity 1790 Matter Stores 1000 Matter Capacity 1000 Sight Range 23 Robot Scan Range 15 Terrain Scan Density 10 Jamming Range 14 Base Temperature (-) 200 Armor Coverage 1200 Resistance: KI 44 Resistance: TH 36 Resistance: EM 17 Melee Speed Boost 50 Phase Shifting 15 Evasion (%) 55 Targeting Accuracy 8 Core Analysis 8 Recoil Reduction 6 Force Boost 40 Salvage Targeting 5 Relay Coupler Types 6 Relay Coupler Value 380 Authchip Count 1 Item Schematics ----------------- None Robot Schematics ------------------ M-13 Machinist | -10/Materials | Hacked Fabricated ------------ Plasma Rifle | x2 | -6/Factory | Preloaded M-13 Machinist | x1 | -6/Factory Lgt. Quantum Reactor | x2 | -2/Research | Preloaded Repaired ---------- Nothing Studied --------- Arm. Wheel | -6/Factory | Hacked Remote Datajack | -6/Factory | Hacked Hvy. Flak Cannon | -6/Factory | Hacked Adv. Heavy Siege Treads | -3/Research | Hacked Alien Tech Used ----------------- Core Stripper Achievements -------------- Chaos Is Inevitable Deep Understanding Executioner Into The Furnace Challenges ------------ None Game ------ Seed InterceptRiotDirector Manual? 0 Play Time 07:25:43 Cumulative 291.7 hours Start 2026.06.23 @ 15:51:17 End 2026.06.25 @ 19:53:37 Sessions 23 Manual Loads 0 Difficulty Rogue Special Mode None Game No. 115 Rogue 110 Adventurer 5 Explorer 0 Win Type - Total 8 Types 4/0/2/1/0/0/0/0/0/1 Lore% 74 Gallery% 71 Achievement% 64 Wizard Run 0 Options --------- Layout 0 ASCII 0 Keyboard 0 Movement Numpad Keybinds 0 Fullscreen 1 Font 18/SmallcapsGlow Map View 76x50 Zoom Use 0% Tactical HUD 1 Map Filters NONE Filters NONE Steam 1 RUN: 5b33909a-a4c2-4549-9ed7-1d9c9350ed36